{"text_format":"3","workbook":"xlsx","n_sheets":4,"sheets":["Praćenje rezultata","Vaš učinak","Postavke","Izračunavanja"],"not_rendered":{"defined_names":3},"read":"whole","date_system":"1900"}

{"sheet":"Praćenje rezultata","index":0,"n_rows":14,"n_cols":6,"rows_kept":14}
[null,"Ovde unesite rezultate"]
[]
[null,null,"Čas","Tip","Opis","Rezultat"]
[null,null,"Savremeni francuski","Domaći zadatak","Istorija Drugog svetskog rata",{"v":0.8,"d":"80%"}]
[null,null,"Napredno programiranje u Java jeziku","Polugodište",null,{"v":0.75,"d":"75%"}]
[null,null,"Španski","Domaći zadatak",null,{"v":0.5,"d":"50%"}]
[null,null,"Teorijska fizika","Domaći zadatak",null,{"v":0.95,"d":"95%"}]
[null,null,"Savremeni francuski","Domaći zadatak","Istorija Prvog svetskog rata",{"v":0.9,"d":"90%"}]
[null,null,"Savremeni francuski","Domaći zadatak","Stranice 30 - 41",{"v":0.8,"d":"80%"}]
[null,null,"Sastav","Esej","Esej o ubeđivanju",{"v":0.95,"d":"95%"}]
[null,null,"Matematika 1","Domaći zadatak","Stranice 21 i 26",{"v":0.8,"d":"80%"}]
[null,null,"Matematika 2","Domaći zadatak","Stranice 15 i 18",{"v":0.85,"d":"85%"}]
[null,null,"Matematika 1","Domaći zadatak","Stranice 34 - 36",{"v":0.8,"d":"80%"}]
[null,null,"Matematika 2","Test",null,{"v":0.95,"d":"95%"}]

{"sheet":"Vaš učinak","index":1,"n_rows":31,"n_cols":8,"rows_kept":31}
[null,"Vaš učinak"]
[]
[null,null,"Ukupne vrednosti"]
[null,null,{"$f":"\"Časovi: \"&SUM(tblClasses[Časovi za bodove])","v":"Časovi: 24"},{"$f":"AVERAGE(D7:D31)","v":{"v":0.8104761904761906,"d":"81%"}},{"$f":"AVERAGE(E7:E31)","v":{"v":2.7142857142857144,"d":"2.71"}},{"$f":"SUM(F7:F31)","v":{"v":2.625,"d":"2.63"}},{"$f":"IFERROR(HLOOKUP(D4,lstGPAMapping,2),\"\")","v":"B-"}]
[]
[null,null,"Predmeti","%","PROSEČNA OCENA","Ponderisana prosečna ocena","Slovo","Opšti učinak"]
[null,null,{"$f":"Izračunavanja!C6","v":"Savremeni francuski"},{"$f":"Izračunavanja!AL6","v":{"v":0.8333333333333334,"d":"83%"}},{"$f":"Izračunavanja!AM6","v":{"v":3,"d":"3.00"}},{"$f":"IFERROR(E7*Postavke!D9/SUM(tblClasses[Časovi za bodove]),\"\")","v":{"v":0.375,"d":"0.38"}},{"$f":"Izračunavanja!AN6","v":"B"}]
[null,null,{"$f":"Izračunavanja!C7","v":"Teorijska fizika"},{"$f":"Izračunavanja!AL7","v":{"v":0.95,"d":"95%"}},{"$f":"Izračunavanja!AM7","v":{"v":4,"d":"4.00"}},{"$f":"IFERROR(E8*Postavke!D10/SUM(tblClasses[Časovi za bodove]),\"\")","v":{"v":0.5,"d":"0.50"}},{"$f":"Izračunavanja!AN7","v":"A"}]
[null,null,{"$f":"Izračunavanja!C8","v":"Matematika 1"},{"$f":"Izračunavanja!AL8","v":{"v":0.8000000000000002,"d":"80%"}},{"$f":"Izračunavanja!AM8","v":2.67},{"$f":"IFERROR(E9*Postavke!D11/SUM(tblClasses[Časovi za bodove]),\"\")","v":{"v":0.445,"d":"0.45"}},{"$f":"Izračunavanja!AN8","v":"B-"}]
[null,null,{"$f":"Izračunavanja!C9","v":"Matematika 2"},{"$f":"Izračunavanja!AL9","v":{"v":0.89,"d":"89%"}},{"$f":"Izračunavanja!AM9","v":3.33},{"$f":"IFERROR(E10*Postavke!D12/SUM(tblClasses[Časovi za bodove]),\"\")","v":{"v":0.555,"d":"0.56"}},{"$f":"Izračunavanja!AN9","v":"B+"}]
[null,null,{"$f":"Izračunavanja!C10","v":"Napredno programiranje u Java jeziku"},{"$f":"Izračunavanja!AL10","v":{"v":0.7500000000000001,"d":"75%"}},{"$f":"Izračunavanja!AM10","v":{"v":2,"d":"2.00"}},{"$f":"IFERROR(E11*Postavke!D13/SUM(tblClasses[Časovi za bodove]),\"\")","v":{"v":0.4166666666666667,"d":"0.42"}},{"$f":"Izračunavanja!AN10","v":"C"}]
[null,null,{"$f":"Izračunavanja!C11","v":"Španski"},{"$f":"Izračunavanja!AL11","v":{"v":0.5,"d":"50%"}},{"$f":"Izračunavanja!AM11","v":{"v":0,"d":"0.00"}},{"$f":"IFERROR(E12*Postavke!D14/SUM(tblClasses[Časovi za bodove]),\"\")","v":{"v":0,"d":"0.00"}},{"$f":"Izračunavanja!AN11","v":"F"}]
[null,null,{"$f":"Izračunavanja!C12","v":"Sastav"},{"$f":"Izračunavanja!AL12","v":{"v":0.95,"d":"95%"}},{"$f":"Izračunavanja!AM12","v":{"v":4,"d":"4.00"}},{"$f":"IFERROR(E13*Postavke!D15/SUM(tblClasses[Časovi za bodove]),\"\")","v":{"v":0.3333333333333333,"d":"0.33"}},{"$f":"Izračunavanja!AN12","v":"A"}]
[null,null,{"$f":"Izračunavanja!C13","v":""},{"$f":"Izračunavanja!AL13","v":""},{"$f":"Izračunavanja!AM13","v":""},{"$f":"IFERROR(E14*Postavke!D16/SUM(tblClasses[Časovi za bodove]),\"\")","v":""},{"$f":"Izračunavanja!AN13","v":""}]
[null,null,{"$f":"Izračunavanja!C14","v":""},{"$f":"Izračunavanja!AL14","v":""},{"$f":"Izračunavanja!AM14","v":""},{"$f":"IFERROR(E15*Postavke!D17/SUM(tblClasses[Časovi za bodove]),\"\")","v":""},{"$f":"Izračunavanja!AN14","v":""}]
[null,null,{"$f":"Izračunavanja!C15","v":""},{"$f":"Izračunavanja!AL15","v":""},{"$f":"Izračunavanja!AM15","v":""},{"$f":"IFERROR(E16*Postavke!D18/SUM(tblClasses[Časovi za bodove]),\"\")","v":""},{"$f":"Izračunavanja!AN15","v":""}]
[null,null,{"$f":"Izračunavanja!C16","v":""},{"$f":"Izračunavanja!AL16","v":""},{"$f":"Izračunavanja!AM16","v":""},{"$f":"IFERROR(E17*Postavke!D19/SUM(tblClasses[Časovi za bodove]),\"\")","v":""},{"$f":"Izračunavanja!AN16","v":""}]
[null,null,{"$f":"Izračunavanja!C17","v":""},{"$f":"Izračunavanja!AL17","v":""},{"$f":"Izračunavanja!AM17","v":""},{"$f":"IFERROR(E18*Postavke!D20/SUM(tblClasses[Časovi za bodove]),\"\")","v":""},{"$f":"Izračunavanja!AN17","v":""}]
[null,null,{"$f":"Izračunavanja!C18","v":""},{"$f":"Izračunavanja!AL18","v":""},{"$f":"Izračunavanja!AM18","v":""},{"$f":"IFERROR(E19*Postavke!D21/SUM(tblClasses[Časovi za bodove]),\"\")","v":""},{"$f":"Izračunavanja!AN18","v":""}]
[null,null,{"$f":"Izračunavanja!C19","v":""},{"$f":"Izračunavanja!AL19","v":""},{"$f":"Izračunavanja!AM19","v":""},{"$f":"IFERROR(E20*Postavke!D22/SUM(tblClasses[Časovi za bodove]),\"\")","v":""},{"$f":"Izračunavanja!AN19","v":""}]
[null,null,{"$f":"Izračunavanja!C20","v":""},{"$f":"Izračunavanja!AL20","v":""},{"$f":"Izračunavanja!AM20","v":""},{"$f":"IFERROR(E21*Postavke!D23/SUM(tblClasses[Časovi za bodove]),\"\")","v":""},{"$f":"Izračunavanja!AN20","v":""}]
[null,null,{"$f":"Izračunavanja!C21","v":""},{"$f":"Izračunavanja!AL21","v":""},{"$f":"Izračunavanja!AM21","v":""},{"$f":"IFERROR(E22*Postavke!D24/SUM(tblClasses[Časovi za bodove]),\"\")","v":""},{"$f":"Izračunavanja!AN21","v":""}]
[null,null,{"$f":"Izračunavanja!C22","v":""},{"$f":"Izračunavanja!AL22","v":""},{"$f":"Izračunavanja!AM22","v":""},{"$f":"IFERROR(E23*Postavke!D25/SUM(tblClasses[Časovi za bodove]),\"\")","v":""},{"$f":"Izračunavanja!AN22","v":""}]
[null,null,{"$f":"Izračunavanja!C23","v":""},{"$f":"Izračunavanja!AL23","v":""},{"$f":"Izračunavanja!AM23","v":""},{"$f":"IFERROR(E24*Postavke!D26/SUM(tblClasses[Časovi za bodove]),\"\")","v":""},{"$f":"Izračunavanja!AN23","v":""}]
[null,null,{"$f":"Izračunavanja!C24","v":""},{"$f":"Izračunavanja!AL24","v":""},{"$f":"Izračunavanja!AM24","v":""},{"$f":"IFERROR(E25*Postavke!D27/SUM(tblClasses[Časovi za bodove]),\"\")","v":""},{"$f":"Izračunavanja!AN24","v":""}]
[null,null,{"$f":"Izračunavanja!C25","v":""},{"$f":"Izračunavanja!AL25","v":""},{"$f":"Izračunavanja!AM25","v":""},{"$f":"IFERROR(E26*Postavke!D28/SUM(tblClasses[Časovi za bodove]),\"\")","v":""},{"$f":"Izračunavanja!AN25","v":""}]
[null,null,{"$f":"Izračunavanja!C26","v":""},{"$f":"Izračunavanja!AL26","v":""},{"$f":"Izračunavanja!AM26","v":""},{"$f":"IFERROR(E27*Postavke!D29/SUM(tblClasses[Časovi za bodove]),\"\")","v":""},{"$f":"Izračunavanja!AN26","v":""}]
[null,null,{"$f":"Izračunavanja!C27","v":""},{"$f":"Izračunavanja!AL27","v":""},{"$f":"Izračunavanja!AM27","v":""},{"$f":"IFERROR(E28*Postavke!D30/SUM(tblClasses[Časovi za bodove]),\"\")","v":""},{"$f":"Izračunavanja!AN27","v":""}]
[null,null,{"$f":"Izračunavanja!C28","v":""},{"$f":"Izračunavanja!AL28","v":""},{"$f":"Izračunavanja!AM28","v":""},{"$f":"IFERROR(E29*Postavke!D31/SUM(tblClasses[Časovi za bodove]),\"\")","v":""},{"$f":"Izračunavanja!AN28","v":""}]
[null,null,{"$f":"Izračunavanja!C29","v":""},{"$f":"Izračunavanja!AL29","v":""},{"$f":"Izračunavanja!AM29","v":""},{"$f":"IFERROR(E30*Postavke!D32/SUM(tblClasses[Časovi za bodove]),\"\")","v":""},{"$f":"Izračunavanja!AN29","v":""}]
[null,null,{"$f":"Izračunavanja!C30","v":""},{"$f":"Izračunavanja!AL30","v":""},{"$f":"Izračunavanja!AM30","v":""},{"$f":"IFERROR(E31*Postavke!D33/SUM(tblClasses[Časovi za bodove]),\"\")","v":""},{"$f":"Izračunavanja!AN30","v":""}]

{"sheet":"Postavke","index":2,"n_rows":15,"n_cols":16,"rows_kept":15,"merged":[[5,2,5,15]]}
[null,"Postavke"]
[null,null,"Mapiranje rezultata i prosečnih ocena"]
[null,null,"Procenat",{"v":0,"d":"0%"},{"v":0.6,"d":"60%"},{"v":0.63,"d":"63%"},{"v":0.67,"d":"67%"},{"v":0.7,"d":"70%"},{"v":0.73,"d":"73%"},{"v":0.77,"d":"77%"},{"v":0.8,"d":"80%"},{"v":0.83,"d":"83%"},{"v":0.87,"d":"87%"},{"v":0.9,"d":"90%"},{"v":0.93,"d":"93%"},{"v":0.97,"d":"97%"}]
[null,null,"Slovna ocena","F","D-","D","D+","C-","C","C+","B-","B","B+","A-","A","A+"]
[null,null,"PROSEČNA OCENA",0,0.67,1,1.33,1.67,2,2.33,2.67,3,3.33,3.67,4,4]
[]
[null,null,"Ponderisani rezultati do 25 predmeta"]
[null,null,"Predmeti koje pohađate","Časovi za bodove","Domaći zadatak","Esej","Test","Projekat","Polugodište","Završni ispit","Ostalo","% od ukupnog"]
[null,null,"Savremeni francuski",{"v":3,"d":"3.0"},{"v":0.1,"d":"10%"},{"v":0.15,"d":"15%"},{"v":0.15,"d":"15%"},{"v":0.1,"d":"10%"},{"v":0.2,"d":"20%"},{"v":0.3,"d":"30%"},null,{"$f":"SUM(tblClasses[[#This Row],[Domaći zadatak]:[Ostalo]])","v":{"v":1,"d":"100%"}}]
[null,null,"Teorijska fizika",{"v":3,"d":"3.0"},{"v":0.15,"d":"15%"},{"v":0.15,"d":"15%"},{"v":0.1,"d":"10%"},{"v":0.1,"d":"10%"},{"v":0.15,"d":"15%"},{"v":0.3,"d":"30%"},{"v":0.05,"d":"5%"},{"$f":"SUM(tblClasses[[#This Row],[Domaći zadatak]:[Ostalo]])","v":{"v":1,"d":"100%"}}]
[null,null,"Matematika 1",{"v":4,"d":"4.0"},{"v":0.1,"d":"10%"},{"v":0.15,"d":"15%"},{"v":0.15,"d":"15%"},{"v":0.1,"d":"10%"},{"v":0.2,"d":"20%"},{"v":0.3,"d":"30%"},null,{"$f":"SUM(tblClasses[[#This Row],[Domaći zadatak]:[Ostalo]])","v":{"v":1,"d":"100%"}}]
[null,null,"Matematika 2",{"v":4,"d":"4.0"},{"v":0.15,"d":"15%"},{"v":0.15,"d":"15%"},{"v":0.1,"d":"10%"},{"v":0.1,"d":"10%"},{"v":0.15,"d":"15%"},{"v":0.3,"d":"30%"},{"v":0.05,"d":"5%"},{"$f":"SUM(tblClasses[[#This Row],[Domaći zadatak]:[Ostalo]])","v":{"v":1,"d":"100%"}}]
[null,null,"Napredno programiranje u Java jeziku",{"v":5,"d":"5.0"},{"v":0.15,"d":"15%"},{"v":0.15,"d":"15%"},{"v":0.1,"d":"10%"},{"v":0.1,"d":"10%"},{"v":0.2,"d":"20%"},{"v":0.3,"d":"30%"},null,{"$f":"SUM(tblClasses[[#This Row],[Domaći zadatak]:[Ostalo]])","v":{"v":1,"d":"100%"}}]
[null,null,"Španski",{"v":3,"d":"3.0"},{"v":0.1,"d":"10%"},{"v":0.15,"d":"15%"},{"v":0.17,"d":"17%"},{"v":0.13,"d":"13%"},{"v":0.2,"d":"20%"},{"v":0.2,"d":"20%"},{"v":0.05,"d":"5%"},{"$f":"SUM(tblClasses[[#This Row],[Domaći zadatak]:[Ostalo]])","v":{"v":1,"d":"100%"}}]
[null,null,"Sastav",{"v":2,"d":"2.0"},{"v":0.15,"d":"15%"},{"v":0.15,"d":"15%"},{"v":0.12,"d":"12%"},{"v":0.15,"d":"15%"},{"v":0.15,"d":"15%"},{"v":0.25,"d":"25%"},{"v":0.03,"d":"3%"},{"$f":"SUM(tblClasses[[#This Row],[Domaći zadatak]:[Ostalo]])","v":{"v":1,"d":"100%"}}]

{"sheet":"Izračunavanja","index":3,"n_rows":657,"n_cols":40,"rows_kept":657,"hidden":true}
[null,"Izračunavanja"]
[null,null,"Ovaj radni list obezbeđuje izračunavanje vaših ocena i prosečnih ocena i trebalo bi da ostane sakriven. Sve promene na ovom listu mogu dovesti do grešaka."]
[]
[null,null,"Lista trenutnih časova","Rezultati (od 1)",{"$nulls":24},"Izračunavanje ocena"]
[null,null,"Čas",1,2,3,4,5,6,7,8,9,10,11,12,13,14,15,16,17,18,19,20,21,22,23,24,25,{"$f":"tblClasses[[#Headers],[Domaći zadatak]]","v":"Domaći zadatak"},{"$f":"tblClasses[[#Headers],[Esej]]","v":"Esej"},{"$f":"tblClasses[[#Headers],[Test]]","v":"Test"},{"$f":"tblClasses[[#Headers],[Projekat]]","v":"Projekat"},{"$f":"tblClasses[[#Headers],[Polugodište]]","v":"Polugodište"},{"$f":"tblClasses[[#Headers],[Završni ispit]]","v":"Završni ispit"},{"$f":"tblClasses[[#Headers],[Ostalo]]","v":"Ostalo"},"Ukupno","Ukupan broj mogućih bodova","Ukupno %","Ocena","Slovna ocena"]
[null,null,{"$f":"IF(Postavke!C9=\"\",\"\",Postavke!C9)","v":"Savremeni francuski"},{"$f":"IFERROR(INDEX(tblClassScores[],MATCH($C6:$C30&D$5:AB$5,Izračunavanja!$C$33:$C$657,0),4),\"\")","v":{"v":0.8,"d":"80%"}},{"v":0.9,"d":"90%"},{"v":0.8,"d":"80%"},"","","","","","","","","","","","","","","","","","","","","","",{"$f":"IFERROR(AVERAGEIFS(tblClassScores[Rezultat],tblClassScores[Čas],Izračunavanja!$C6,tblClassScores[Tip],Izračunavanja!AC$5)*Postavke!E9,\"\")","v":0.08333333333333334},{"$f":"IFERROR(AVERAGEIFS(tblClassScores[Rezultat],tblClassScores[Čas],Izračunavanja!$C6,tblClassScores[Tip],Izračunavanja!AD$5)*Postavke!F9,\"\")","v":""},{"$f":"IFERROR(AVERAGEIFS(tblClassScores[Rezultat],tblClassScores[Čas],Izračunavanja!$C6,tblClassScores[Tip],Izračunavanja!AE$5)*Postavke!G9,\"\")","v":""},{"$f":"IFERROR(AVERAGEIFS(tblClassScores[Rezultat],tblClassScores[Čas],Izračunavanja!$C6,tblClassScores[Tip],Izračunavanja!AF$5)*Postavke!H9,\"\")","v":""},{"$f":"IFERROR(AVERAGEIFS(tblClassScores[Rezultat],tblClassScores[Čas],Izračunavanja!$C6,tblClassScores[Tip],Izračunavanja!AG$5)*Postavke!I9,\"\")","v":""},{"$f":"IFERROR(AVERAGEIFS(tblClassScores[Rezultat],tblClassScores[Čas],Izračunavanja!$C6,tblClassScores[Tip],Izračunavanja!AH$5)*Postavke!J9,\"\")","v":""},{"$f":"IFERROR(AVERAGEIFS(tblClassScores[Rezultat],tblClassScores[Čas],Izračunavanja!$C6,tblClassScores[Tip],Izračunavanja!AI$5)*Postavke!K9,\"\")","v":""},{"$f":"SUM(AC6:AI6)","v":0.08333333333333334},{"$f":"SUMIFS(Postavke!E9:K9,Izračunavanja!AC6:AI6,\">0\")","v":0.1},{"$f":"IFERROR(AJ6/AK6,\"\")","v":{"v":0.8333333333333334,"d":"83%"}},{"$f":"IFERROR(HLOOKUP(AL6,lstGPAMapping,3),\"\")","v":3},{"$f":"IFERROR(HLOOKUP(AL6,lstGPAMapping,2),\"\")","v":"B"}]
[null,null,{"$f":"IF(Postavke!C10=\"\",\"\",Postavke!C10)","v":"Teorijska fizika"},{"v":0.95,"d":"95%"},"","","","","","","","","","","","","","","","","","","","","","","","",{"$f":"IFERROR(AVERAGEIFS(tblClassScores[Rezultat],tblClassScores[Čas],Izračunavanja!$C7,tblClassScores[Tip],Izračunavanja!AC$5)*Postavke!E10,\"\")","v":0.1425},{"$f":"IFERROR(AVERAGEIFS(tblClassScores[Rezultat],tblClassScores[Čas],Izračunavanja!$C7,tblClassScores[Tip],Izračunavanja!AD$5)*Postavke!F10,\"\")","v":""},{"$f":"IFERROR(AVERAGEIFS(tblClassScores[Rezultat],tblClassScores[Čas],Izračunavanja!$C7,tblClassScores[Tip],Izračunavanja!AE$5)*Postavke!G10,\"\")","v":""},{"$f":"IFERROR(AVERAGEIFS(tblClassScores[Rezultat],tblClassScores[Čas],Izračunavanja!$C7,tblClassScores[Tip],Izračunavanja!AF$5)*Postavke!H10,\"\")","v":""},{"$f":"IFERROR(AVERAGEIFS(tblClassScores[Rezultat],tblClassScores[Čas],Izračunavanja!$C7,tblClassScores[Tip],Izračunavanja!AG$5)*Postavke!I10,\"\")","v":""},{"$f":"IFERROR(AVERAGEIFS(tblClassScores[Rezultat],tblClassScores[Čas],Izračunavanja!$C7,tblClassScores[Tip],Izračunavanja!AH$5)*Postavke!J10,\"\")","v":""},{"$f":"IFERROR(AVERAGEIFS(tblClassScores[Rezultat],tblClassScores[Čas],Izračunavanja!$C7,tblClassScores[Tip],Izračunavanja!AI$5)*Postavke!K10,\"\")","v":""},{"$f":"SUM(AC7:AI7)","v":0.1425},{"$f":"SUMIFS(Postavke!E10:K10,Izračunavanja!AC7:AI7,\">0\")","v":0.15},{"$f":"IFERROR(AJ7/AK7,\"\")","v":{"v":0.95,"d":"95%"}},4,"A"]
[null,null,{"$f":"IF(Postavke!C11=\"\",\"\",Postavke!C11)","v":"Matematika 1"},{"v":0.8,"d":"80%"},{"v":0.8,"d":"80%"},"","","","","","","","","","","","","","","","","","","","","","","",{"$f":"IFERROR(AVERAGEIFS(tblClassScores[Rezultat],tblClassScores[Čas],Izračunavanja!$C8,tblClassScores[Tip],Izračunavanja!AC$5)*Postavke!E11,\"\")","v":0.08000000000000002},{"$f":"IFERROR(AVERAGEIFS(tblClassScores[Rezultat],tblClassScores[Čas],Izračunavanja!$C8,tblClassScores[Tip],Izračunavanja!AD$5)*Postavke!F11,\"\")","v":""},{"$f":"IFERROR(AVERAGEIFS(tblClassScores[Rezultat],tblClassScores[Čas],Izračunavanja!$C8,tblClassScores[Tip],Izračunavanja!AE$5)*Postavke!G11,\"\")","v":""},{"$f":"IFERROR(AVERAGEIFS(tblClassScores[Rezultat],tblClassScores[Čas],Izračunavanja!$C8,tblClassScores[Tip],Izračunavanja!AF$5)*Postavke!H11,\"\")","v":""},{"$f":"IFERROR(AVERAGEIFS(tblClassScores[Rezultat],tblClassScores[Čas],Izračunavanja!$C8,tblClassScores[Tip],Izračunavanja!AG$5)*Postavke!I11,\"\")","v":""},{"$f":"IFERROR(AVERAGEIFS(tblClassScores[Rezultat],tblClassScores[Čas],Izračunavanja!$C8,tblClassScores[Tip],Izračunavanja!AH$5)*Postavke!J11,\"\")","v":""},{"$f":"IFERROR(AVERAGEIFS(tblClassScores[Rezultat],tblClassScores[Čas],Izračunavanja!$C8,tblClassScores[Tip],Izračunavanja!AI$5)*Postavke!K11,\"\")","v":""},0.08000000000000002,{"$f":"SUMIFS(Postavke!E11:K11,Izračunavanja!AC8:AI8,\">0\")","v":0.1},{"v":0.8000000000000002,"d":"80%"},2.67,"B-"]
[null,null,{"$f":"IF(Postavke!C12=\"\",\"\",Postavke!C12)","v":"Matematika 2"},{"v":0.85,"d":"85%"},{"v":0.95,"d":"95%"},"","","","","","","","","","","","","","","","","","","","","","","",{"$f":"IFERROR(AVERAGEIFS(tblClassScores[Rezultat],tblClassScores[Čas],Izračunavanja!$C9,tblClassScores[Tip],Izračunavanja!AC$5)*Postavke!E12,\"\")","v":0.1275},{"$f":"IFERROR(AVERAGEIFS(tblClassScores[Rezultat],tblClassScores[Čas],Izračunavanja!$C9,tblClassScores[Tip],Izračunavanja!AD$5)*Postavke!F12,\"\")","v":""},{"$f":"IFERROR(AVERAGEIFS(tblClassScores[Rezultat],tblClassScores[Čas],Izračunavanja!$C9,tblClassScores[Tip],Izračunavanja!AE$5)*Postavke!G12,\"\")","v":0.095},{"$f":"IFERROR(AVERAGEIFS(tblClassScores[Rezultat],tblClassScores[Čas],Izračunavanja!$C9,tblClassScores[Tip],Izračunavanja!AF$5)*Postavke!H12,\"\")","v":""},{"$f":"IFERROR(AVERAGEIFS(tblClassScores[Rezultat],tblClassScores[Čas],Izračunavanja!$C9,tblClassScores[Tip],Izračunavanja!AG$5)*Postavke!I12,\"\")","v":""},{"$f":"IFERROR(AVERAGEIFS(tblClassScores[Rezultat],tblClassScores[Čas],Izračunavanja!$C9,tblClassScores[Tip],Izračunavanja!AH$5)*Postavke!J12,\"\")","v":""},{"$f":"IFERROR(AVERAGEIFS(tblClassScores[Rezultat],tblClassScores[Čas],Izračunavanja!$C9,tblClassScores[Tip],Izračunavanja!AI$5)*Postavke!K12,\"\")","v":""},0.2225,{"$f":"SUMIFS(Postavke!E12:K12,Izračunavanja!AC9:AI9,\">0\")","v":0.25},{"v":0.89,"d":"89%"},3.33,"B+"]
[null,null,{"$f":"IF(Postavke!C13=\"\",\"\",Postavke!C13)","v":"Napredno programiranje u Java jeziku"},{"v":0.75,"d":"75%"},"","","","","","","","","","","","","","","","","","","","","","","","",{"$f":"IFERROR(AVERAGEIFS(tblClassScores[Rezultat],tblClassScores[Čas],Izračunavanja!$C10,tblClassScores[Tip],Izračunavanja!AC$5)*Postavke!E13,\"\")","v":""},{"$f":"IFERROR(AVERAGEIFS(tblClassScores[Rezultat],tblClassScores[Čas],Izračunavanja!$C10,tblClassScores[Tip],Izračunavanja!AD$5)*Postavke!F13,\"\")","v":""},{"$f":"IFERROR(AVERAGEIFS(tblClassScores[Rezultat],tblClassScores[Čas],Izračunavanja!$C10,tblClassScores[Tip],Izračunavanja!AE$5)*Postavke!G13,\"\")","v":""},{"$f":"IFERROR(AVERAGEIFS(tblClassScores[Rezultat],tblClassScores[Čas],Izračunavanja!$C10,tblClassScores[Tip],Izračunavanja!AF$5)*Postavke!H13,\"\")","v":""},{"$f":"IFERROR(AVERAGEIFS(tblClassScores[Rezultat],tblClassScores[Čas],Izračunavanja!$C10,tblClassScores[Tip],Izračunavanja!AG$5)*Postavke!I13,\"\")","v":0.15000000000000002},{"$f":"IFERROR(AVERAGEIFS(tblClassScores[Rezultat],tblClassScores[Čas],Izračunavanja!$C10,tblClassScores[Tip],Izračunavanja!AH$5)*Postavke!J13,\"\")","v":""},{"$f":"IFERROR(AVERAGEIFS(tblClassScores[Rezultat],tblClassScores[Čas],Izračunavanja!$C10,tblClassScores[Tip],Izračunavanja!AI$5)*Postavke!K13,\"\")","v":""},0.15000000000000002,{"$f":"SUMIFS(Postavke!E13:K13,Izračunavanja!AC10:AI10,\">0\")","v":0.2},{"v":0.7500000000000001,"d":"75%"},2,"C"]
[null,null,{"$f":"IF(Postavke!C14=\"\",\"\",Postavke!C14)","v":"Španski"},{"v":0.5,"d":"50%"},"","","","","","","","","","","","","","","","","","","","","","","","",{"$f":"IFERROR(AVERAGEIFS(tblClassScores[Rezultat],tblClassScores[Čas],Izračunavanja!$C11,tblClassScores[Tip],Izračunavanja!AC$5)*Postavke!E14,\"\")","v":0.05},{"$f":"IFERROR(AVERAGEIFS(tblClassScores[Rezultat],tblClassScores[Čas],Izračunavanja!$C11,tblClassScores[Tip],Izračunavanja!AD$5)*Postavke!F14,\"\")","v":""},{"$f":"IFERROR(AVERAGEIFS(tblClassScores[Rezultat],tblClassScores[Čas],Izračunavanja!$C11,tblClassScores[Tip],Izračunavanja!AE$5)*Postavke!G14,\"\")","v":""},{"$f":"IFERROR(AVERAGEIFS(tblClassScores[Rezultat],tblClassScores[Čas],Izračunavanja!$C11,tblClassScores[Tip],Izračunavanja!AF$5)*Postavke!H14,\"\")","v":""},{"$f":"IFERROR(AVERAGEIFS(tblClassScores[Rezultat],tblClassScores[Čas],Izračunavanja!$C11,tblClassScores[Tip],Izračunavanja!AG$5)*Postavke!I14,\"\")","v":""},{"$f":"IFERROR(AVERAGEIFS(tblClassScores[Rezultat],tblClassScores[Čas],Izračunavanja!$C11,tblClassScores[Tip],Izračunavanja!AH$5)*Postavke!J14,\"\")","v":""},{"$f":"IFERROR(AVERAGEIFS(tblClassScores[Rezultat],tblClassScores[Čas],Izračunavanja!$C11,tblClassScores[Tip],Izračunavanja!AI$5)*Postavke!K14,\"\")","v":""},0.05,{"$f":"SUMIFS(Postavke!E14:K14,Izračunavanja!AC11:AI11,\">0\")","v":0.1},{"v":0.5,"d":"50%"},0,"F"]
[null,null,{"$f":"IF(Postavke!C15=\"\",\"\",Postavke!C15)","v":"Sastav"},{"v":0.95,"d":"95%"},"","","","","","","","","","","","","","","","","","","","","","","","",{"$f":"IFERROR(AVERAGEIFS(tblClassScores[Rezultat],tblClassScores[Čas],Izračunavanja!$C12,tblClassScores[Tip],Izračunavanja!AC$5)*Postavke!E15,\"\")","v":""},{"$f":"IFERROR(AVERAGEIFS(tblClassScores[Rezultat],tblClassScores[Čas],Izračunavanja!$C12,tblClassScores[Tip],Izračunavanja!AD$5)*Postavke!F15,\"\")","v":0.1425},{"$f":"IFERROR(AVERAGEIFS(tblClassScores[Rezultat],tblClassScores[Čas],Izračunavanja!$C12,tblClassScores[Tip],Izračunavanja!AE$5)*Postavke!G15,\"\")","v":""},{"$f":"IFERROR(AVERAGEIFS(tblClassScores[Rezultat],tblClassScores[Čas],Izračunavanja!$C12,tblClassScores[Tip],Izračunavanja!AF$5)*Postavke!H15,\"\")","v":""},{"$f":"IFERROR(AVERAGEIFS(tblClassScores[Rezultat],tblClassScores[Čas],Izračunavanja!$C12,tblClassScores[Tip],Izračunavanja!AG$5)*Postavke!I15,\"\")","v":""},{"$f":"IFERROR(AVERAGEIFS(tblClassScores[Rezultat],tblClassScores[Čas],Izračunavanja!$C12,tblClassScores[Tip],Izračunavanja!AH$5)*Postavke!J15,\"\")","v":""},{"$f":"IFERROR(AVERAGEIFS(tblClassScores[Rezultat],tblClassScores[Čas],Izračunavanja!$C12,tblClassScores[Tip],Izračunavanja!AI$5)*Postavke!K15,\"\")","v":""},0.1425,{"$f":"SUMIFS(Postavke!E15:K15,Izračunavanja!AC12:AI12,\">0\")","v":0.15},{"v":0.95,"d":"95%"},4,"A"]
[null,null,{"$f":"IF(Postavke!C16=\"\",\"\",Postavke!C16)","v":""},"","","","","","","","","","","","","","","","","","","","","","","","","",{"$f":"IFERROR(AVERAGEIFS(tblClassScores[Rezultat],tblClassScores[Čas],Izračunavanja!$C13,tblClassScores[Tip],Izračunavanja!AC$5)*Postavke!E16,\"\")","v":""},{"$f":"IFERROR(AVERAGEIFS(tblClassScores[Rezultat],tblClassScores[Čas],Izračunavanja!$C13,tblClassScores[Tip],Izračunavanja!AD$5)*Postavke!F16,\"\")","v":""},{"$f":"IFERROR(AVERAGEIFS(tblClassScores[Rezultat],tblClassScores[Čas],Izračunavanja!$C13,tblClassScores[Tip],Izračunavanja!AE$5)*Postavke!G16,\"\")","v":""},{"$f":"IFERROR(AVERAGEIFS(tblClassScores[Rezultat],tblClassScores[Čas],Izračunavanja!$C13,tblClassScores[Tip],Izračunavanja!AF$5)*Postavke!H16,\"\")","v":""},{"$f":"IFERROR(AVERAGEIFS(tblClassScores[Rezultat],tblClassScores[Čas],Izračunavanja!$C13,tblClassScores[Tip],Izračunavanja!AG$5)*Postavke!I16,\"\")","v":""},{"$f":"IFERROR(AVERAGEIFS(tblClassScores[Rezultat],tblClassScores[Čas],Izračunavanja!$C13,tblClassScores[Tip],Izračunavanja!AH$5)*Postavke!J16,\"\")","v":""},{"$f":"IFERROR(AVERAGEIFS(tblClassScores[Rezultat],tblClassScores[Čas],Izračunavanja!$C13,tblClassScores[Tip],Izračunavanja!AI$5)*Postavke!K16,\"\")","v":""},{"$f":"SUM(AC13:AI13)","v":0},{"$f":"SUMIFS(Postavke!E16:K16,Izračunavanja!AC13:AI13,\">0\")","v":0},{"$f":"IFERROR(AJ13/AK13,\"\")","v":""},"",""]
[null,null,{"$f":"IF(Postavke!C17=\"\",\"\",Postavke!C17)","v":""},"","","","","","","","","","","","","","","","","","","","","","","","","",{"$f":"IFERROR(AVERAGEIFS(tblClassScores[Rezultat],tblClassScores[Čas],Izračunavanja!$C14,tblClassScores[Tip],Izračunavanja!AC$5)*Postavke!E17,\"\")","v":""},{"$f":"IFERROR(AVERAGEIFS(tblClassScores[Rezultat],tblClassScores[Čas],Izračunavanja!$C14,tblClassScores[Tip],Izračunavanja!AD$5)*Postavke!F17,\"\")","v":""},{"$f":"IFERROR(AVERAGEIFS(tblClassScores[Rezultat],tblClassScores[Čas],Izračunavanja!$C14,tblClassScores[Tip],Izračunavanja!AE$5)*Postavke!G17,\"\")","v":""},{"$f":"IFERROR(AVERAGEIFS(tblClassScores[Rezultat],tblClassScores[Čas],Izračunavanja!$C14,tblClassScores[Tip],Izračunavanja!AF$5)*Postavke!H17,\"\")","v":""},{"$f":"IFERROR(AVERAGEIFS(tblClassScores[Rezultat],tblClassScores[Čas],Izračunavanja!$C14,tblClassScores[Tip],Izračunavanja!AG$5)*Postavke!I17,\"\")","v":""},{"$f":"IFERROR(AVERAGEIFS(tblClassScores[Rezultat],tblClassScores[Čas],Izračunavanja!$C14,tblClassScores[Tip],Izračunavanja!AH$5)*Postavke!J17,\"\")","v":""},{"$f":"IFERROR(AVERAGEIFS(tblClassScores[Rezultat],tblClassScores[Čas],Izračunavanja!$C14,tblClassScores[Tip],Izračunavanja!AI$5)*Postavke!K17,\"\")","v":""},0,{"$f":"SUMIFS(Postavke!E17:K17,Izračunavanja!AC14:AI14,\">0\")","v":0},"","",""]
[null,null,{"$f":"IF(Postavke!C18=\"\",\"\",Postavke!C18)","v":""},"","","","","","","","","","","","","","","","","","","","","","","","","",{"$f":"IFERROR(AVERAGEIFS(tblClassScores[Rezultat],tblClassScores[Čas],Izračunavanja!$C15,tblClassScores[Tip],Izračunavanja!AC$5)*Postavke!E18,\"\")","v":""},{"$f":"IFERROR(AVERAGEIFS(tblClassScores[Rezultat],tblClassScores[Čas],Izračunavanja!$C15,tblClassScores[Tip],Izračunavanja!AD$5)*Postavke!F18,\"\")","v":""},{"$f":"IFERROR(AVERAGEIFS(tblClassScores[Rezultat],tblClassScores[Čas],Izračunavanja!$C15,tblClassScores[Tip],Izračunavanja!AE$5)*Postavke!G18,\"\")","v":""},{"$f":"IFERROR(AVERAGEIFS(tblClassScores[Rezultat],tblClassScores[Čas],Izračunavanja!$C15,tblClassScores[Tip],Izračunavanja!AF$5)*Postavke!H18,\"\")","v":""},{"$f":"IFERROR(AVERAGEIFS(tblClassScores[Rezultat],tblClassScores[Čas],Izračunavanja!$C15,tblClassScores[Tip],Izračunavanja!AG$5)*Postavke!I18,\"\")","v":""},{"$f":"IFERROR(AVERAGEIFS(tblClassScores[Rezultat],tblClassScores[Čas],Izračunavanja!$C15,tblClassScores[Tip],Izračunavanja!AH$5)*Postavke!J18,\"\")","v":""},{"$f":"IFERROR(AVERAGEIFS(tblClassScores[Rezultat],tblClassScores[Čas],Izračunavanja!$C15,tblClassScores[Tip],Izračunavanja!AI$5)*Postavke!K18,\"\")","v":""},0,{"$f":"SUMIFS(Postavke!E18:K18,Izračunavanja!AC15:AI15,\">0\")","v":0},"","",""]
[null,null,{"$f":"IF(Postavke!C19=\"\",\"\",Postavke!C19)","v":""},"","","","","","","","","","","","","","","","","","","","","","","","","",{"$f":"IFERROR(AVERAGEIFS(tblClassScores[Rezultat],tblClassScores[Čas],Izračunavanja!$C16,tblClassScores[Tip],Izračunavanja!AC$5)*Postavke!E19,\"\")","v":""},{"$f":"IFERROR(AVERAGEIFS(tblClassScores[Rezultat],tblClassScores[Čas],Izračunavanja!$C16,tblClassScores[Tip],Izračunavanja!AD$5)*Postavke!F19,\"\")","v":""},{"$f":"IFERROR(AVERAGEIFS(tblClassScores[Rezultat],tblClassScores[Čas],Izračunavanja!$C16,tblClassScores[Tip],Izračunavanja!AE$5)*Postavke!G19,\"\")","v":""},{"$f":"IFERROR(AVERAGEIFS(tblClassScores[Rezultat],tblClassScores[Čas],Izračunavanja!$C16,tblClassScores[Tip],Izračunavanja!AF$5)*Postavke!H19,\"\")","v":""},{"$f":"IFERROR(AVERAGEIFS(tblClassScores[Rezultat],tblClassScores[Čas],Izračunavanja!$C16,tblClassScores[Tip],Izračunavanja!AG$5)*Postavke!I19,\"\")","v":""},{"$f":"IFERROR(AVERAGEIFS(tblClassScores[Rezultat],tblClassScores[Čas],Izračunavanja!$C16,tblClassScores[Tip],Izračunavanja!AH$5)*Postavke!J19,\"\")","v":""},{"$f":"IFERROR(AVERAGEIFS(tblClassScores[Rezultat],tblClassScores[Čas],Izračunavanja!$C16,tblClassScores[Tip],Izračunavanja!AI$5)*Postavke!K19,\"\")","v":""},0,{"$f":"SUMIFS(Postavke!E19:K19,Izračunavanja!AC16:AI16,\">0\")","v":0},"","",""]
[null,null,{"$f":"IF(Postavke!C20=\"\",\"\",Postavke!C20)","v":""},"","","","","","","","","","","","","","","","","","","","","","","","","",{"$f":"IFERROR(AVERAGEIFS(tblClassScores[Rezultat],tblClassScores[Čas],Izračunavanja!$C17,tblClassScores[Tip],Izračunavanja!AC$5)*Postavke!E20,\"\")","v":""},{"$f":"IFERROR(AVERAGEIFS(tblClassScores[Rezultat],tblClassScores[Čas],Izračunavanja!$C17,tblClassScores[Tip],Izračunavanja!AD$5)*Postavke!F20,\"\")","v":""},{"$f":"IFERROR(AVERAGEIFS(tblClassScores[Rezultat],tblClassScores[Čas],Izračunavanja!$C17,tblClassScores[Tip],Izračunavanja!AE$5)*Postavke!G20,\"\")","v":""},{"$f":"IFERROR(AVERAGEIFS(tblClassScores[Rezultat],tblClassScores[Čas],Izračunavanja!$C17,tblClassScores[Tip],Izračunavanja!AF$5)*Postavke!H20,\"\")","v":""},{"$f":"IFERROR(AVERAGEIFS(tblClassScores[Rezultat],tblClassScores[Čas],Izračunavanja!$C17,tblClassScores[Tip],Izračunavanja!AG$5)*Postavke!I20,\"\")","v":""},{"$f":"IFERROR(AVERAGEIFS(tblClassScores[Rezultat],tblClassScores[Čas],Izračunavanja!$C17,tblClassScores[Tip],Izračunavanja!AH$5)*Postavke!J20,\"\")","v":""},{"$f":"IFERROR(AVERAGEIFS(tblClassScores[Rezultat],tblClassScores[Čas],Izračunavanja!$C17,tblClassScores[Tip],Izračunavanja!AI$5)*Postavke!K20,\"\")","v":""},0,{"$f":"SUMIFS(Postavke!E20:K20,Izračunavanja!AC17:AI17,\">0\")","v":0},"","",""]
[null,null,{"$f":"IF(Postavke!C21=\"\",\"\",Postavke!C21)","v":""},"","","","","","","","","","","","","","","","","","","","","","","","","",{"$f":"IFERROR(AVERAGEIFS(tblClassScores[Rezultat],tblClassScores[Čas],Izračunavanja!$C18,tblClassScores[Tip],Izračunavanja!AC$5)*Postavke!E21,\"\")","v":""},{"$f":"IFERROR(AVERAGEIFS(tblClassScores[Rezultat],tblClassScores[Čas],Izračunavanja!$C18,tblClassScores[Tip],Izračunavanja!AD$5)*Postavke!F21,\"\")","v":""},{"$f":"IFERROR(AVERAGEIFS(tblClassScores[Rezultat],tblClassScores[Čas],Izračunavanja!$C18,tblClassScores[Tip],Izračunavanja!AE$5)*Postavke!G21,\"\")","v":""},{"$f":"IFERROR(AVERAGEIFS(tblClassScores[Rezultat],tblClassScores[Čas],Izračunavanja!$C18,tblClassScores[Tip],Izračunavanja!AF$5)*Postavke!H21,\"\")","v":""},{"$f":"IFERROR(AVERAGEIFS(tblClassScores[Rezultat],tblClassScores[Čas],Izračunavanja!$C18,tblClassScores[Tip],Izračunavanja!AG$5)*Postavke!I21,\"\")","v":""},{"$f":"IFERROR(AVERAGEIFS(tblClassScores[Rezultat],tblClassScores[Čas],Izračunavanja!$C18,tblClassScores[Tip],Izračunavanja!AH$5)*Postavke!J21,\"\")","v":""},{"$f":"IFERROR(AVERAGEIFS(tblClassScores[Rezultat],tblClassScores[Čas],Izračunavanja!$C18,tblClassScores[Tip],Izračunavanja!AI$5)*Postavke!K21,\"\")","v":""},0,{"$f":"SUMIFS(Postavke!E21:K21,Izračunavanja!AC18:AI18,\">0\")","v":0},"","",""]
[null,null,{"$f":"IF(Postavke!C22=\"\",\"\",Postavke!C22)","v":""},"","","","","","","","","","","","","","","","","","","","","","","","","",{"$f":"IFERROR(AVERAGEIFS(tblClassScores[Rezultat],tblClassScores[Čas],Izračunavanja!$C19,tblClassScores[Tip],Izračunavanja!AC$5)*Postavke!E22,\"\")","v":""},{"$f":"IFERROR(AVERAGEIFS(tblClassScores[Rezultat],tblClassScores[Čas],Izračunavanja!$C19,tblClassScores[Tip],Izračunavanja!AD$5)*Postavke!F22,\"\")","v":""},{"$f":"IFERROR(AVERAGEIFS(tblClassScores[Rezultat],tblClassScores[Čas],Izračunavanja!$C19,tblClassScores[Tip],Izračunavanja!AE$5)*Postavke!G22,\"\")","v":""},{"$f":"IFERROR(AVERAGEIFS(tblClassScores[Rezultat],tblClassScores[Čas],Izračunavanja!$C19,tblClassScores[Tip],Izračunavanja!AF$5)*Postavke!H22,\"\")","v":""},{"$f":"IFERROR(AVERAGEIFS(tblClassScores[Rezultat],tblClassScores[Čas],Izračunavanja!$C19,tblClassScores[Tip],Izračunavanja!AG$5)*Postavke!I22,\"\")","v":""},{"$f":"IFERROR(AVERAGEIFS(tblClassScores[Rezultat],tblClassScores[Čas],Izračunavanja!$C19,tblClassScores[Tip],Izračunavanja!AH$5)*Postavke!J22,\"\")","v":""},{"$f":"IFERROR(AVERAGEIFS(tblClassScores[Rezultat],tblClassScores[Čas],Izračunavanja!$C19,tblClassScores[Tip],Izračunavanja!AI$5)*Postavke!K22,\"\")","v":""},0,{"$f":"SUMIFS(Postavke!E22:K22,Izračunavanja!AC19:AI19,\">0\")","v":0},"","",""]
[null,null,{"$f":"IF(Postavke!C23=\"\",\"\",Postavke!C23)","v":""},"","","","","","","","","","","","","","","","","","","","","","","","","",{"$f":"IFERROR(AVERAGEIFS(tblClassScores[Rezultat],tblClassScores[Čas],Izračunavanja!$C20,tblClassScores[Tip],Izračunavanja!AC$5)*Postavke!E23,\"\")","v":""},{"$f":"IFERROR(AVERAGEIFS(tblClassScores[Rezultat],tblClassScores[Čas],Izračunavanja!$C20,tblClassScores[Tip],Izračunavanja!AD$5)*Postavke!F23,\"\")","v":""},{"$f":"IFERROR(AVERAGEIFS(tblClassScores[Rezultat],tblClassScores[Čas],Izračunavanja!$C20,tblClassScores[Tip],Izračunavanja!AE$5)*Postavke!G23,\"\")","v":""},{"$f":"IFERROR(AVERAGEIFS(tblClassScores[Rezultat],tblClassScores[Čas],Izračunavanja!$C20,tblClassScores[Tip],Izračunavanja!AF$5)*Postavke!H23,\"\")","v":""},{"$f":"IFERROR(AVERAGEIFS(tblClassScores[Rezultat],tblClassScores[Čas],Izračunavanja!$C20,tblClassScores[Tip],Izračunavanja!AG$5)*Postavke!I23,\"\")","v":""},{"$f":"IFERROR(AVERAGEIFS(tblClassScores[Rezultat],tblClassScores[Čas],Izračunavanja!$C20,tblClassScores[Tip],Izračunavanja!AH$5)*Postavke!J23,\"\")","v":""},{"$f":"IFERROR(AVERAGEIFS(tblClassScores[Rezultat],tblClassScores[Čas],Izračunavanja!$C20,tblClassScores[Tip],Izračunavanja!AI$5)*Postavke!K23,\"\")","v":""},0,{"$f":"SUMIFS(Postavke!E23:K23,Izračunavanja!AC20:AI20,\">0\")","v":0},"","",""]
[null,null,{"$f":"IF(Postavke!C24=\"\",\"\",Postavke!C24)","v":""},"","","","","","","","","","","","","","","","","","","","","","","","","",{"$f":"IFERROR(AVERAGEIFS(tblClassScores[Rezultat],tblClassScores[Čas],Izračunavanja!$C21,tblClassScores[Tip],Izračunavanja!AC$5)*Postavke!E24,\"\")","v":""},{"$f":"IFERROR(AVERAGEIFS(tblClassScores[Rezultat],tblClassScores[Čas],Izračunavanja!$C21,tblClassScores[Tip],Izračunavanja!AD$5)*Postavke!F24,\"\")","v":""},{"$f":"IFERROR(AVERAGEIFS(tblClassScores[Rezultat],tblClassScores[Čas],Izračunavanja!$C21,tblClassScores[Tip],Izračunavanja!AE$5)*Postavke!G24,\"\")","v":""},{"$f":"IFERROR(AVERAGEIFS(tblClassScores[Rezultat],tblClassScores[Čas],Izračunavanja!$C21,tblClassScores[Tip],Izračunavanja!AF$5)*Postavke!H24,\"\")","v":""},{"$f":"IFERROR(AVERAGEIFS(tblClassScores[Rezultat],tblClassScores[Čas],Izračunavanja!$C21,tblClassScores[Tip],Izračunavanja!AG$5)*Postavke!I24,\"\")","v":""},{"$f":"IFERROR(AVERAGEIFS(tblClassScores[Rezultat],tblClassScores[Čas],Izračunavanja!$C21,tblClassScores[Tip],Izračunavanja!AH$5)*Postavke!J24,\"\")","v":""},{"$f":"IFERROR(AVERAGEIFS(tblClassScores[Rezultat],tblClassScores[Čas],Izračunavanja!$C21,tblClassScores[Tip],Izračunavanja!AI$5)*Postavke!K24,\"\")","v":""},0,{"$f":"SUMIFS(Postavke!E24:K24,Izračunavanja!AC21:AI21,\">0\")","v":0},"","",""]
[null,null,{"$f":"IF(Postavke!C25=\"\",\"\",Postavke!C25)","v":""},"","","","","","","","","","","","","","","","","","","","","","","","","",{"$f":"IFERROR(AVERAGEIFS(tblClassScores[Rezultat],tblClassScores[Čas],Izračunavanja!$C22,tblClassScores[Tip],Izračunavanja!AC$5)*Postavke!E25,\"\")","v":""},{"$f":"IFERROR(AVERAGEIFS(tblClassScores[Rezultat],tblClassScores[Čas],Izračunavanja!$C22,tblClassScores[Tip],Izračunavanja!AD$5)*Postavke!F25,\"\")","v":""},{"$f":"IFERROR(AVERAGEIFS(tblClassScores[Rezultat],tblClassScores[Čas],Izračunavanja!$C22,tblClassScores[Tip],Izračunavanja!AE$5)*Postavke!G25,\"\")","v":""},{"$f":"IFERROR(AVERAGEIFS(tblClassScores[Rezultat],tblClassScores[Čas],Izračunavanja!$C22,tblClassScores[Tip],Izračunavanja!AF$5)*Postavke!H25,\"\")","v":""},{"$f":"IFERROR(AVERAGEIFS(tblClassScores[Rezultat],tblClassScores[Čas],Izračunavanja!$C22,tblClassScores[Tip],Izračunavanja!AG$5)*Postavke!I25,\"\")","v":""},{"$f":"IFERROR(AVERAGEIFS(tblClassScores[Rezultat],tblClassScores[Čas],Izračunavanja!$C22,tblClassScores[Tip],Izračunavanja!AH$5)*Postavke!J25,\"\")","v":""},{"$f":"IFERROR(AVERAGEIFS(tblClassScores[Rezultat],tblClassScores[Čas],Izračunavanja!$C22,tblClassScores[Tip],Izračunavanja!AI$5)*Postavke!K25,\"\")","v":""},0,{"$f":"SUMIFS(Postavke!E25:K25,Izračunavanja!AC22:AI22,\">0\")","v":0},"","",""]
[null,null,{"$f":"IF(Postavke!C26=\"\",\"\",Postavke!C26)","v":""},"","","","","","","","","","","","","","","","","","","","","","","","","",{"$f":"IFERROR(AVERAGEIFS(tblClassScores[Rezultat],tblClassScores[Čas],Izračunavanja!$C23,tblClassScores[Tip],Izračunavanja!AC$5)*Postavke!E26,\"\")","v":""},{"$f":"IFERROR(AVERAGEIFS(tblClassScores[Rezultat],tblClassScores[Čas],Izračunavanja!$C23,tblClassScores[Tip],Izračunavanja!AD$5)*Postavke!F26,\"\")","v":""},{"$f":"IFERROR(AVERAGEIFS(tblClassScores[Rezultat],tblClassScores[Čas],Izračunavanja!$C23,tblClassScores[Tip],Izračunavanja!AE$5)*Postavke!G26,\"\")","v":""},{"$f":"IFERROR(AVERAGEIFS(tblClassScores[Rezultat],tblClassScores[Čas],Izračunavanja!$C23,tblClassScores[Tip],Izračunavanja!AF$5)*Postavke!H26,\"\")","v":""},{"$f":"IFERROR(AVERAGEIFS(tblClassScores[Rezultat],tblClassScores[Čas],Izračunavanja!$C23,tblClassScores[Tip],Izračunavanja!AG$5)*Postavke!I26,\"\")","v":""},{"$f":"IFERROR(AVERAGEIFS(tblClassScores[Rezultat],tblClassScores[Čas],Izračunavanja!$C23,tblClassScores[Tip],Izračunavanja!AH$5)*Postavke!J26,\"\")","v":""},{"$f":"IFERROR(AVERAGEIFS(tblClassScores[Rezultat],tblClassScores[Čas],Izračunavanja!$C23,tblClassScores[Tip],Izračunavanja!AI$5)*Postavke!K26,\"\")","v":""},0,{"$f":"SUMIFS(Postavke!E26:K26,Izračunavanja!AC23:AI23,\">0\")","v":0},"","",""]
[null,null,{"$f":"IF(Postavke!C27=\"\",\"\",Postavke!C27)","v":""},"","","","","","","","","","","","","","","","","","","","","","","","","",{"$f":"IFERROR(AVERAGEIFS(tblClassScores[Rezultat],tblClassScores[Čas],Izračunavanja!$C24,tblClassScores[Tip],Izračunavanja!AC$5)*Postavke!E27,\"\")","v":""},{"$f":"IFERROR(AVERAGEIFS(tblClassScores[Rezultat],tblClassScores[Čas],Izračunavanja!$C24,tblClassScores[Tip],Izračunavanja!AD$5)*Postavke!F27,\"\")","v":""},{"$f":"IFERROR(AVERAGEIFS(tblClassScores[Rezultat],tblClassScores[Čas],Izračunavanja!$C24,tblClassScores[Tip],Izračunavanja!AE$5)*Postavke!G27,\"\")","v":""},{"$f":"IFERROR(AVERAGEIFS(tblClassScores[Rezultat],tblClassScores[Čas],Izračunavanja!$C24,tblClassScores[Tip],Izračunavanja!AF$5)*Postavke!H27,\"\")","v":""},{"$f":"IFERROR(AVERAGEIFS(tblClassScores[Rezultat],tblClassScores[Čas],Izračunavanja!$C24,tblClassScores[Tip],Izračunavanja!AG$5)*Postavke!I27,\"\")","v":""},{"$f":"IFERROR(AVERAGEIFS(tblClassScores[Rezultat],tblClassScores[Čas],Izračunavanja!$C24,tblClassScores[Tip],Izračunavanja!AH$5)*Postavke!J27,\"\")","v":""},{"$f":"IFERROR(AVERAGEIFS(tblClassScores[Rezultat],tblClassScores[Čas],Izračunavanja!$C24,tblClassScores[Tip],Izračunavanja!AI$5)*Postavke!K27,\"\")","v":""},0,{"$f":"SUMIFS(Postavke!E27:K27,Izračunavanja!AC24:AI24,\">0\")","v":0},"","",""]
[null,null,{"$f":"IF(Postavke!C28=\"\",\"\",Postavke!C28)","v":""},"","","","","","","","","","","","","","","","","","","","","","","","","",{"$f":"IFERROR(AVERAGEIFS(tblClassScores[Rezultat],tblClassScores[Čas],Izračunavanja!$C25,tblClassScores[Tip],Izračunavanja!AC$5)*Postavke!E28,\"\")","v":""},{"$f":"IFERROR(AVERAGEIFS(tblClassScores[Rezultat],tblClassScores[Čas],Izračunavanja!$C25,tblClassScores[Tip],Izračunavanja!AD$5)*Postavke!F28,\"\")","v":""},{"$f":"IFERROR(AVERAGEIFS(tblClassScores[Rezultat],tblClassScores[Čas],Izračunavanja!$C25,tblClassScores[Tip],Izračunavanja!AE$5)*Postavke!G28,\"\")","v":""},{"$f":"IFERROR(AVERAGEIFS(tblClassScores[Rezultat],tblClassScores[Čas],Izračunavanja!$C25,tblClassScores[Tip],Izračunavanja!AF$5)*Postavke!H28,\"\")","v":""},{"$f":"IFERROR(AVERAGEIFS(tblClassScores[Rezultat],tblClassScores[Čas],Izračunavanja!$C25,tblClassScores[Tip],Izračunavanja!AG$5)*Postavke!I28,\"\")","v":""},{"$f":"IFERROR(AVERAGEIFS(tblClassScores[Rezultat],tblClassScores[Čas],Izračunavanja!$C25,tblClassScores[Tip],Izračunavanja!AH$5)*Postavke!J28,\"\")","v":""},{"$f":"IFERROR(AVERAGEIFS(tblClassScores[Rezultat],tblClassScores[Čas],Izračunavanja!$C25,tblClassScores[Tip],Izračunavanja!AI$5)*Postavke!K28,\"\")","v":""},0,{"$f":"SUMIFS(Postavke!E28:K28,Izračunavanja!AC25:AI25,\">0\")","v":0},"","",""]
[null,null,{"$f":"IF(Postavke!C29=\"\",\"\",Postavke!C29)","v":""},"","","","","","","","","","","","","","","","","","","","","","","","","",{"$f":"IFERROR(AVERAGEIFS(tblClassScores[Rezultat],tblClassScores[Čas],Izračunavanja!$C26,tblClassScores[Tip],Izračunavanja!AC$5)*Postavke!E29,\"\")","v":""},{"$f":"IFERROR(AVERAGEIFS(tblClassScores[Rezultat],tblClassScores[Čas],Izračunavanja!$C26,tblClassScores[Tip],Izračunavanja!AD$5)*Postavke!F29,\"\")","v":""},{"$f":"IFERROR(AVERAGEIFS(tblClassScores[Rezultat],tblClassScores[Čas],Izračunavanja!$C26,tblClassScores[Tip],Izračunavanja!AE$5)*Postavke!G29,\"\")","v":""},{"$f":"IFERROR(AVERAGEIFS(tblClassScores[Rezultat],tblClassScores[Čas],Izračunavanja!$C26,tblClassScores[Tip],Izračunavanja!AF$5)*Postavke!H29,\"\")","v":""},{"$f":"IFERROR(AVERAGEIFS(tblClassScores[Rezultat],tblClassScores[Čas],Izračunavanja!$C26,tblClassScores[Tip],Izračunavanja!AG$5)*Postavke!I29,\"\")","v":""},{"$f":"IFERROR(AVERAGEIFS(tblClassScores[Rezultat],tblClassScores[Čas],Izračunavanja!$C26,tblClassScores[Tip],Izračunavanja!AH$5)*Postavke!J29,\"\")","v":""},{"$f":"IFERROR(AVERAGEIFS(tblClassScores[Rezultat],tblClassScores[Čas],Izračunavanja!$C26,tblClassScores[Tip],Izračunavanja!AI$5)*Postavke!K29,\"\")","v":""},0,{"$f":"SUMIFS(Postavke!E29:K29,Izračunavanja!AC26:AI26,\">0\")","v":0},"","",""]
[null,null,{"$f":"IF(Postavke!C30=\"\",\"\",Postavke!C30)","v":""},"","","","","","","","","","","","","","","","","","","","","","","","","",{"$f":"IFERROR(AVERAGEIFS(tblClassScores[Rezultat],tblClassScores[Čas],Izračunavanja!$C27,tblClassScores[Tip],Izračunavanja!AC$5)*Postavke!E30,\"\")","v":""},{"$f":"IFERROR(AVERAGEIFS(tblClassScores[Rezultat],tblClassScores[Čas],Izračunavanja!$C27,tblClassScores[Tip],Izračunavanja!AD$5)*Postavke!F30,\"\")","v":""},{"$f":"IFERROR(AVERAGEIFS(tblClassScores[Rezultat],tblClassScores[Čas],Izračunavanja!$C27,tblClassScores[Tip],Izračunavanja!AE$5)*Postavke!G30,\"\")","v":""},{"$f":"IFERROR(AVERAGEIFS(tblClassScores[Rezultat],tblClassScores[Čas],Izračunavanja!$C27,tblClassScores[Tip],Izračunavanja!AF$5)*Postavke!H30,\"\")","v":""},{"$f":"IFERROR(AVERAGEIFS(tblClassScores[Rezultat],tblClassScores[Čas],Izračunavanja!$C27,tblClassScores[Tip],Izračunavanja!AG$5)*Postavke!I30,\"\")","v":""},{"$f":"IFERROR(AVERAGEIFS(tblClassScores[Rezultat],tblClassScores[Čas],Izračunavanja!$C27,tblClassScores[Tip],Izračunavanja!AH$5)*Postavke!J30,\"\")","v":""},{"$f":"IFERROR(AVERAGEIFS(tblClassScores[Rezultat],tblClassScores[Čas],Izračunavanja!$C27,tblClassScores[Tip],Izračunavanja!AI$5)*Postavke!K30,\"\")","v":""},0,{"$f":"SUMIFS(Postavke!E30:K30,Izračunavanja!AC27:AI27,\">0\")","v":0},"","",""]
[null,null,{"$f":"IF(Postavke!C31=\"\",\"\",Postavke!C31)","v":""},"","","","","","","","","","","","","","","","","","","","","","","","","",{"$f":"IFERROR(AVERAGEIFS(tblClassScores[Rezultat],tblClassScores[Čas],Izračunavanja!$C28,tblClassScores[Tip],Izračunavanja!AC$5)*Postavke!E31,\"\")","v":""},{"$f":"IFERROR(AVERAGEIFS(tblClassScores[Rezultat],tblClassScores[Čas],Izračunavanja!$C28,tblClassScores[Tip],Izračunavanja!AD$5)*Postavke!F31,\"\")","v":""},{"$f":"IFERROR(AVERAGEIFS(tblClassScores[Rezultat],tblClassScores[Čas],Izračunavanja!$C28,tblClassScores[Tip],Izračunavanja!AE$5)*Postavke!G31,\"\")","v":""},{"$f":"IFERROR(AVERAGEIFS(tblClassScores[Rezultat],tblClassScores[Čas],Izračunavanja!$C28,tblClassScores[Tip],Izračunavanja!AF$5)*Postavke!H31,\"\")","v":""},{"$f":"IFERROR(AVERAGEIFS(tblClassScores[Rezultat],tblClassScores[Čas],Izračunavanja!$C28,tblClassScores[Tip],Izračunavanja!AG$5)*Postavke!I31,\"\")","v":""},{"$f":"IFERROR(AVERAGEIFS(tblClassScores[Rezultat],tblClassScores[Čas],Izračunavanja!$C28,tblClassScores[Tip],Izračunavanja!AH$5)*Postavke!J31,\"\")","v":""},{"$f":"IFERROR(AVERAGEIFS(tblClassScores[Rezultat],tblClassScores[Čas],Izračunavanja!$C28,tblClassScores[Tip],Izračunavanja!AI$5)*Postavke!K31,\"\")","v":""},0,{"$f":"SUMIFS(Postavke!E31:K31,Izračunavanja!AC28:AI28,\">0\")","v":0},"","",""]
[null,null,{"$f":"IF(Postavke!C32=\"\",\"\",Postavke!C32)","v":""},"","","","","","","","","","","","","","","","","","","","","","","","","",{"$f":"IFERROR(AVERAGEIFS(tblClassScores[Rezultat],tblClassScores[Čas],Izračunavanja!$C29,tblClassScores[Tip],Izračunavanja!AC$5)*Postavke!E32,\"\")","v":""},{"$f":"IFERROR(AVERAGEIFS(tblClassScores[Rezultat],tblClassScores[Čas],Izračunavanja!$C29,tblClassScores[Tip],Izračunavanja!AD$5)*Postavke!F32,\"\")","v":""},{"$f":"IFERROR(AVERAGEIFS(tblClassScores[Rezultat],tblClassScores[Čas],Izračunavanja!$C29,tblClassScores[Tip],Izračunavanja!AE$5)*Postavke!G32,\"\")","v":""},{"$f":"IFERROR(AVERAGEIFS(tblClassScores[Rezultat],tblClassScores[Čas],Izračunavanja!$C29,tblClassScores[Tip],Izračunavanja!AF$5)*Postavke!H32,\"\")","v":""},{"$f":"IFERROR(AVERAGEIFS(tblClassScores[Rezultat],tblClassScores[Čas],Izračunavanja!$C29,tblClassScores[Tip],Izračunavanja!AG$5)*Postavke!I32,\"\")","v":""},{"$f":"IFERROR(AVERAGEIFS(tblClassScores[Rezultat],tblClassScores[Čas],Izračunavanja!$C29,tblClassScores[Tip],Izračunavanja!AH$5)*Postavke!J32,\"\")","v":""},{"$f":"IFERROR(AVERAGEIFS(tblClassScores[Rezultat],tblClassScores[Čas],Izračunavanja!$C29,tblClassScores[Tip],Izračunavanja!AI$5)*Postavke!K32,\"\")","v":""},0,{"$f":"SUMIFS(Postavke!E32:K32,Izračunavanja!AC29:AI29,\">0\")","v":0},"","",""]
[null,null,{"$f":"IF(Postavke!C33=\"\",\"\",Postavke!C33)","v":""},"","","","","","","","","","","","","","","","","","","","","","","","","",{"$f":"IFERROR(AVERAGEIFS(tblClassScores[Rezultat],tblClassScores[Čas],Izračunavanja!$C30,tblClassScores[Tip],Izračunavanja!AC$5)*Postavke!E33,\"\")","v":""},{"$f":"IFERROR(AVERAGEIFS(tblClassScores[Rezultat],tblClassScores[Čas],Izračunavanja!$C30,tblClassScores[Tip],Izračunavanja!AD$5)*Postavke!F33,\"\")","v":""},{"$f":"IFERROR(AVERAGEIFS(tblClassScores[Rezultat],tblClassScores[Čas],Izračunavanja!$C30,tblClassScores[Tip],Izračunavanja!AE$5)*Postavke!G33,\"\")","v":""},{"$f":"IFERROR(AVERAGEIFS(tblClassScores[Rezultat],tblClassScores[Čas],Izračunavanja!$C30,tblClassScores[Tip],Izračunavanja!AF$5)*Postavke!H33,\"\")","v":""},{"$f":"IFERROR(AVERAGEIFS(tblClassScores[Rezultat],tblClassScores[Čas],Izračunavanja!$C30,tblClassScores[Tip],Izračunavanja!AG$5)*Postavke!I33,\"\")","v":""},{"$f":"IFERROR(AVERAGEIFS(tblClassScores[Rezultat],tblClassScores[Čas],Izračunavanja!$C30,tblClassScores[Tip],Izračunavanja!AH$5)*Postavke!J33,\"\")","v":""},{"$f":"IFERROR(AVERAGEIFS(tblClassScores[Rezultat],tblClassScores[Čas],Izračunavanja!$C30,tblClassScores[Tip],Izračunavanja!AI$5)*Postavke!K33,\"\")","v":""},0,{"$f":"SUMIFS(Postavke!E33:K33,Izračunavanja!AC30:AI30,\">0\")","v":0},"","",""]
[]
[]
[null,1,{"$f":"'Praćenje rezultata'!C4&COUNTIF('Praćenje rezultata'!$C$4:C4,'Praćenje rezultata'!C4)","v":"Savremeni francuski1"}]
[null,2,{"$f":"'Praćenje rezultata'!C5&COUNTIF('Praćenje rezultata'!$C$4:C5,'Praćenje rezultata'!C5)","v":"Napredno programiranje u Java jeziku1"}]
[null,3,{"$f":"'Praćenje rezultata'!C6&COUNTIF('Praćenje rezultata'!$C$4:C6,'Praćenje rezultata'!C6)","v":"Španski1"}]
[null,4,{"$f":"'Praćenje rezultata'!C7&COUNTIF('Praćenje rezultata'!$C$4:C7,'Praćenje rezultata'!C7)","v":"Teorijska fizika1"}]
[null,5,{"$f":"'Praćenje rezultata'!C8&COUNTIF('Praćenje rezultata'!$C$4:C8,'Praćenje rezultata'!C8)","v":"Savremeni francuski2"}]
[null,6,{"$f":"'Praćenje rezultata'!C9&COUNTIF('Praćenje rezultata'!$C$4:C9,'Praćenje rezultata'!C9)","v":"Savremeni francuski3"}]
[null,7,{"$f":"'Praćenje rezultata'!C10&COUNTIF('Praćenje rezultata'!$C$4:C10,'Praćenje rezultata'!C10)","v":"Sastav1"}]
[null,8,{"$f":"'Praćenje rezultata'!C11&COUNTIF('Praćenje rezultata'!$C$4:C11,'Praćenje rezultata'!C11)","v":"Matematika 11"}]
[null,9,{"$f":"'Praćenje rezultata'!C12&COUNTIF('Praćenje rezultata'!$C$4:C12,'Praćenje rezultata'!C12)","v":"Matematika 21"}]
[null,10,{"$f":"'Praćenje rezultata'!C13&COUNTIF('Praćenje rezultata'!$C$4:C14,'Praćenje rezultata'!C13)","v":"Matematika 12"}]
[null,11,{"$f":"'Praćenje rezultata'!C14&COUNTIF('Praćenje rezultata'!$C$4:C14,'Praćenje rezultata'!C14)","v":"Matematika 22"}]
[null,12,{"$f":"'Praćenje rezultata'!C15&COUNTIF('Praćenje rezultata'!$C$4:C15,'Praćenje rezultata'!C15)","v":"0"}]
[null,13,{"$f":"'Praćenje rezultata'!C16&COUNTIF('Praćenje rezultata'!$C$4:C16,'Praćenje rezultata'!C16)","v":"0"}]
[null,14,{"$f":"'Praćenje rezultata'!C17&COUNTIF('Praćenje rezultata'!$C$4:C17,'Praćenje rezultata'!C17)","v":"0"}]
[null,15,{"$f":"'Praćenje rezultata'!C18&COUNTIF('Praćenje rezultata'!$C$4:C18,'Praćenje rezultata'!C18)","v":"0"}]
[null,16,{"$f":"'Praćenje rezultata'!C19&COUNTIF('Praćenje rezultata'!$C$4:C19,'Praćenje rezultata'!C19)","v":"0"}]
[null,17,{"$f":"'Praćenje rezultata'!C20&COUNTIF('Praćenje rezultata'!$C$4:C20,'Praćenje rezultata'!C20)","v":"0"}]
[null,18,{"$f":"'Praćenje rezultata'!C21&COUNTIF('Praćenje rezultata'!$C$4:C21,'Praćenje rezultata'!C21)","v":"0"}]
[null,19,{"$f":"'Praćenje rezultata'!C22&COUNTIF('Praćenje rezultata'!$C$4:C22,'Praćenje rezultata'!C22)","v":"0"}]
[null,20,{"$f":"'Praćenje rezultata'!C23&COUNTIF('Praćenje rezultata'!$C$4:C23,'Praćenje rezultata'!C23)","v":"0"}]
[null,21,{"$f":"'Praćenje rezultata'!C24&COUNTIF('Praćenje rezultata'!$C$4:C24,'Praćenje rezultata'!C24)","v":"0"}]
[null,22,{"$f":"'Praćenje rezultata'!C25&COUNTIF('Praćenje rezultata'!$C$4:C25,'Praćenje rezultata'!C25)","v":"0"}]
[null,23,{"$f":"'Praćenje rezultata'!C26&COUNTIF('Praćenje rezultata'!$C$4:C26,'Praćenje rezultata'!C26)","v":"0"}]
[null,24,{"$f":"'Praćenje rezultata'!C27&COUNTIF('Praćenje rezultata'!$C$4:C27,'Praćenje rezultata'!C27)","v":"0"}]
[null,25,{"$f":"'Praćenje rezultata'!C28&COUNTIF('Praćenje rezultata'!$C$4:C28,'Praćenje rezultata'!C28)","v":"0"}]
[null,26,{"$f":"'Praćenje rezultata'!C29&COUNTIF('Praćenje rezultata'!$C$4:C29,'Praćenje rezultata'!C29)","v":"0"}]
[null,27,{"$f":"'Praćenje rezultata'!C30&COUNTIF('Praćenje rezultata'!$C$4:C30,'Praćenje rezultata'!C30)","v":"0"}]
[null,28,{"$f":"'Praćenje rezultata'!C31&COUNTIF('Praćenje rezultata'!$C$4:C31,'Praćenje rezultata'!C31)","v":"0"}]
[null,29,{"$f":"'Praćenje rezultata'!C32&COUNTIF('Praćenje rezultata'!$C$4:C32,'Praćenje rezultata'!C32)","v":"0"}]
[null,30,{"$f":"'Praćenje rezultata'!C33&COUNTIF('Praćenje rezultata'!$C$4:C33,'Praćenje rezultata'!C33)","v":"0"}]
[null,31,{"$f":"'Praćenje rezultata'!C34&COUNTIF('Praćenje rezultata'!$C$4:C34,'Praćenje rezultata'!C34)","v":"0"}]
[null,32,{"$f":"'Praćenje rezultata'!C35&COUNTIF('Praćenje rezultata'!$C$4:C35,'Praćenje rezultata'!C35)","v":"0"}]
[null,33,{"$f":"'Praćenje rezultata'!C36&COUNTIF('Praćenje rezultata'!$C$4:C36,'Praćenje rezultata'!C36)","v":"0"}]
[null,34,{"$f":"'Praćenje rezultata'!C37&COUNTIF('Praćenje rezultata'!$C$4:C37,'Praćenje rezultata'!C37)","v":"0"}]
[null,35,{"$f":"'Praćenje rezultata'!C38&COUNTIF('Praćenje rezultata'!$C$4:C38,'Praćenje rezultata'!C38)","v":"0"}]
[null,36,{"$f":"'Praćenje rezultata'!C39&COUNTIF('Praćenje rezultata'!$C$4:C39,'Praćenje rezultata'!C39)","v":"0"}]
[null,37,{"$f":"'Praćenje rezultata'!C40&COUNTIF('Praćenje rezultata'!$C$4:C40,'Praćenje rezultata'!C40)","v":"0"}]
[null,38,{"$f":"'Praćenje rezultata'!C41&COUNTIF('Praćenje rezultata'!$C$4:C41,'Praćenje rezultata'!C41)","v":"0"}]
[null,39,{"$f":"'Praćenje rezultata'!C42&COUNTIF('Praćenje rezultata'!$C$4:C42,'Praćenje rezultata'!C42)","v":"0"}]
[null,40,{"$f":"'Praćenje rezultata'!C43&COUNTIF('Praćenje rezultata'!$C$4:C43,'Praćenje rezultata'!C43)","v":"0"}]
[null,41,{"$f":"'Praćenje rezultata'!C44&COUNTIF('Praćenje rezultata'!$C$4:C44,'Praćenje rezultata'!C44)","v":"0"}]
[null,42,{"$f":"'Praćenje rezultata'!C45&COUNTIF('Praćenje rezultata'!$C$4:C45,'Praćenje rezultata'!C45)","v":"0"}]
[null,43,{"$f":"'Praćenje rezultata'!C46&COUNTIF('Praćenje rezultata'!$C$4:C46,'Praćenje rezultata'!C46)","v":"0"}]
[null,44,{"$f":"'Praćenje rezultata'!C47&COUNTIF('Praćenje rezultata'!$C$4:C47,'Praćenje rezultata'!C47)","v":"0"}]
[null,45,{"$f":"'Praćenje rezultata'!C48&COUNTIF('Praćenje rezultata'!$C$4:C48,'Praćenje rezultata'!C48)","v":"0"}]
[null,46,{"$f":"'Praćenje rezultata'!C49&COUNTIF('Praćenje rezultata'!$C$4:C49,'Praćenje rezultata'!C49)","v":"0"}]
[null,47,{"$f":"'Praćenje rezultata'!C50&COUNTIF('Praćenje rezultata'!$C$4:C50,'Praćenje rezultata'!C50)","v":"0"}]
[null,48,{"$f":"'Praćenje rezultata'!C51&COUNTIF('Praćenje rezultata'!$C$4:C51,'Praćenje rezultata'!C51)","v":"0"}]
[null,49,{"$f":"'Praćenje rezultata'!C52&COUNTIF('Praćenje rezultata'!$C$4:C52,'Praćenje rezultata'!C52)","v":"0"}]
[null,50,{"$f":"'Praćenje rezultata'!C53&COUNTIF('Praćenje rezultata'!$C$4:C53,'Praćenje rezultata'!C53)","v":"0"}]
[null,51,{"$f":"'Praćenje rezultata'!C54&COUNTIF('Praćenje rezultata'!$C$4:C54,'Praćenje rezultata'!C54)","v":"0"}]
[null,52,{"$f":"'Praćenje rezultata'!C55&COUNTIF('Praćenje rezultata'!$C$4:C55,'Praćenje rezultata'!C55)","v":"0"}]
[null,53,{"$f":"'Praćenje rezultata'!C56&COUNTIF('Praćenje rezultata'!$C$4:C56,'Praćenje rezultata'!C56)","v":"0"}]
[null,54,{"$f":"'Praćenje rezultata'!C57&COUNTIF('Praćenje rezultata'!$C$4:C57,'Praćenje rezultata'!C57)","v":"0"}]
[null,55,{"$f":"'Praćenje rezultata'!C58&COUNTIF('Praćenje rezultata'!$C$4:C58,'Praćenje rezultata'!C58)","v":"0"}]
[null,56,{"$f":"'Praćenje rezultata'!C59&COUNTIF('Praćenje rezultata'!$C$4:C59,'Praćenje rezultata'!C59)","v":"0"}]
[null,57,{"$f":"'Praćenje rezultata'!C60&COUNTIF('Praćenje rezultata'!$C$4:C60,'Praćenje rezultata'!C60)","v":"0"}]
[null,58,{"$f":"'Praćenje rezultata'!C61&COUNTIF('Praćenje rezultata'!$C$4:C61,'Praćenje rezultata'!C61)","v":"0"}]
[null,59,{"$f":"'Praćenje rezultata'!C62&COUNTIF('Praćenje rezultata'!$C$4:C62,'Praćenje rezultata'!C62)","v":"0"}]
[null,60,{"$f":"'Praćenje rezultata'!C63&COUNTIF('Praćenje rezultata'!$C$4:C63,'Praćenje rezultata'!C63)","v":"0"}]
[null,61,{"$f":"'Praćenje rezultata'!C64&COUNTIF('Praćenje rezultata'!$C$4:C64,'Praćenje rezultata'!C64)","v":"0"}]
[null,62,{"$f":"'Praćenje rezultata'!C65&COUNTIF('Praćenje rezultata'!$C$4:C65,'Praćenje rezultata'!C65)","v":"0"}]
[null,63,{"$f":"'Praćenje rezultata'!C66&COUNTIF('Praćenje rezultata'!$C$4:C66,'Praćenje rezultata'!C66)","v":"0"}]
[null,64,{"$f":"'Praćenje rezultata'!C67&COUNTIF('Praćenje rezultata'!$C$4:C67,'Praćenje rezultata'!C67)","v":"0"}]
[null,65,{"$f":"'Praćenje rezultata'!C68&COUNTIF('Praćenje rezultata'!$C$4:C68,'Praćenje rezultata'!C68)","v":"0"}]
[null,66,{"$f":"'Praćenje rezultata'!C69&COUNTIF('Praćenje rezultata'!$C$4:C69,'Praćenje rezultata'!C69)","v":"0"}]
[null,67,{"$f":"'Praćenje rezultata'!C70&COUNTIF('Praćenje rezultata'!$C$4:C70,'Praćenje rezultata'!C70)","v":"0"}]
[null,68,{"$f":"'Praćenje rezultata'!C71&COUNTIF('Praćenje rezultata'!$C$4:C71,'Praćenje rezultata'!C71)","v":"0"}]
[null,69,{"$f":"'Praćenje rezultata'!C72&COUNTIF('Praćenje rezultata'!$C$4:C72,'Praćenje rezultata'!C72)","v":"0"}]
[null,70,{"$f":"'Praćenje rezultata'!C73&COUNTIF('Praćenje rezultata'!$C$4:C73,'Praćenje rezultata'!C73)","v":"0"}]
[null,71,{"$f":"'Praćenje rezultata'!C74&COUNTIF('Praćenje rezultata'!$C$4:C74,'Praćenje rezultata'!C74)","v":"0"}]
[null,72,{"$f":"'Praćenje rezultata'!C75&COUNTIF('Praćenje rezultata'!$C$4:C75,'Praćenje rezultata'!C75)","v":"0"}]
[null,73,{"$f":"'Praćenje rezultata'!C76&COUNTIF('Praćenje rezultata'!$C$4:C76,'Praćenje rezultata'!C76)","v":"0"}]
[null,74,{"$f":"'Praćenje rezultata'!C77&COUNTIF('Praćenje rezultata'!$C$4:C77,'Praćenje rezultata'!C77)","v":"0"}]
[null,75,{"$f":"'Praćenje rezultata'!C78&COUNTIF('Praćenje rezultata'!$C$4:C78,'Praćenje rezultata'!C78)","v":"0"}]
[null,76,{"$f":"'Praćenje rezultata'!C79&COUNTIF('Praćenje rezultata'!$C$4:C79,'Praćenje rezultata'!C79)","v":"0"}]
[null,77,{"$f":"'Praćenje rezultata'!C80&COUNTIF('Praćenje rezultata'!$C$4:C80,'Praćenje rezultata'!C80)","v":"0"}]
[null,78,{"$f":"'Praćenje rezultata'!C81&COUNTIF('Praćenje rezultata'!$C$4:C81,'Praćenje rezultata'!C81)","v":"0"}]
[null,79,{"$f":"'Praćenje rezultata'!C82&COUNTIF('Praćenje rezultata'!$C$4:C82,'Praćenje rezultata'!C82)","v":"0"}]
[null,80,{"$f":"'Praćenje rezultata'!C83&COUNTIF('Praćenje rezultata'!$C$4:C83,'Praćenje rezultata'!C83)","v":"0"}]
[null,81,{"$f":"'Praćenje rezultata'!C84&COUNTIF('Praćenje rezultata'!$C$4:C84,'Praćenje rezultata'!C84)","v":"0"}]
[null,82,{"$f":"'Praćenje rezultata'!C85&COUNTIF('Praćenje rezultata'!$C$4:C85,'Praćenje rezultata'!C85)","v":"0"}]
[null,83,{"$f":"'Praćenje rezultata'!C86&COUNTIF('Praćenje rezultata'!$C$4:C86,'Praćenje rezultata'!C86)","v":"0"}]
[null,84,{"$f":"'Praćenje rezultata'!C87&COUNTIF('Praćenje rezultata'!$C$4:C87,'Praćenje rezultata'!C87)","v":"0"}]
[null,85,{"$f":"'Praćenje rezultata'!C88&COUNTIF('Praćenje rezultata'!$C$4:C88,'Praćenje rezultata'!C88)","v":"0"}]
[null,86,{"$f":"'Praćenje rezultata'!C89&COUNTIF('Praćenje rezultata'!$C$4:C89,'Praćenje rezultata'!C89)","v":"0"}]
[null,87,{"$f":"'Praćenje rezultata'!C90&COUNTIF('Praćenje rezultata'!$C$4:C90,'Praćenje rezultata'!C90)","v":"0"}]
[null,88,{"$f":"'Praćenje rezultata'!C91&COUNTIF('Praćenje rezultata'!$C$4:C91,'Praćenje rezultata'!C91)","v":"0"}]
[null,89,{"$f":"'Praćenje rezultata'!C92&COUNTIF('Praćenje rezultata'!$C$4:C92,'Praćenje rezultata'!C92)","v":"0"}]
[null,90,{"$f":"'Praćenje rezultata'!C93&COUNTIF('Praćenje rezultata'!$C$4:C93,'Praćenje rezultata'!C93)","v":"0"}]
[null,91,{"$f":"'Praćenje rezultata'!C94&COUNTIF('Praćenje rezultata'!$C$4:C94,'Praćenje rezultata'!C94)","v":"0"}]
[null,92,{"$f":"'Praćenje rezultata'!C95&COUNTIF('Praćenje rezultata'!$C$4:C95,'Praćenje rezultata'!C95)","v":"0"}]
[null,93,{"$f":"'Praćenje rezultata'!C96&COUNTIF('Praćenje rezultata'!$C$4:C96,'Praćenje rezultata'!C96)","v":"0"}]
[null,94,{"$f":"'Praćenje rezultata'!C97&COUNTIF('Praćenje rezultata'!$C$4:C97,'Praćenje rezultata'!C97)","v":"0"}]
[null,95,{"$f":"'Praćenje rezultata'!C98&COUNTIF('Praćenje rezultata'!$C$4:C98,'Praćenje rezultata'!C98)","v":"0"}]
[null,96,{"$f":"'Praćenje rezultata'!C99&COUNTIF('Praćenje rezultata'!$C$4:C99,'Praćenje rezultata'!C99)","v":"0"}]
[null,97,{"$f":"'Praćenje rezultata'!C100&COUNTIF('Praćenje rezultata'!$C$4:C100,'Praćenje rezultata'!C100)","v":"0"}]
[null,98,{"$f":"'Praćenje rezultata'!C101&COUNTIF('Praćenje rezultata'!$C$4:C101,'Praćenje rezultata'!C101)","v":"0"}]
[null,99,{"$f":"'Praćenje rezultata'!C102&COUNTIF('Praćenje rezultata'!$C$4:C102,'Praćenje rezultata'!C102)","v":"0"}]
[null,100,{"$f":"'Praćenje rezultata'!C103&COUNTIF('Praćenje rezultata'!$C$4:C103,'Praćenje rezultata'!C103)","v":"0"}]
[null,101,{"$f":"'Praćenje rezultata'!C104&COUNTIF('Praćenje rezultata'!$C$4:C104,'Praćenje rezultata'!C104)","v":"0"}]
[null,102,{"$f":"'Praćenje rezultata'!C105&COUNTIF('Praćenje rezultata'!$C$4:C105,'Praćenje rezultata'!C105)","v":"0"}]
[null,103,{"$f":"'Praćenje rezultata'!C106&COUNTIF('Praćenje rezultata'!$C$4:C106,'Praćenje rezultata'!C106)","v":"0"}]
[null,104,{"$f":"'Praćenje rezultata'!C107&COUNTIF('Praćenje rezultata'!$C$4:C107,'Praćenje rezultata'!C107)","v":"0"}]
[null,105,{"$f":"'Praćenje rezultata'!C108&COUNTIF('Praćenje rezultata'!$C$4:C108,'Praćenje rezultata'!C108)","v":"0"}]
[null,106,{"$f":"'Praćenje rezultata'!C109&COUNTIF('Praćenje rezultata'!$C$4:C109,'Praćenje rezultata'!C109)","v":"0"}]
[null,107,{"$f":"'Praćenje rezultata'!C110&COUNTIF('Praćenje rezultata'!$C$4:C110,'Praćenje rezultata'!C110)","v":"0"}]
[null,108,{"$f":"'Praćenje rezultata'!C111&COUNTIF('Praćenje rezultata'!$C$4:C111,'Praćenje rezultata'!C111)","v":"0"}]
[null,109,{"$f":"'Praćenje rezultata'!C112&COUNTIF('Praćenje rezultata'!$C$4:C112,'Praćenje rezultata'!C112)","v":"0"}]
[null,110,{"$f":"'Praćenje rezultata'!C113&COUNTIF('Praćenje rezultata'!$C$4:C113,'Praćenje rezultata'!C113)","v":"0"}]
[null,111,{"$f":"'Praćenje rezultata'!C114&COUNTIF('Praćenje rezultata'!$C$4:C114,'Praćenje rezultata'!C114)","v":"0"}]
[null,112,{"$f":"'Praćenje rezultata'!C115&COUNTIF('Praćenje rezultata'!$C$4:C115,'Praćenje rezultata'!C115)","v":"0"}]
[null,113,{"$f":"'Praćenje rezultata'!C116&COUNTIF('Praćenje rezultata'!$C$4:C116,'Praćenje rezultata'!C116)","v":"0"}]
[null,114,{"$f":"'Praćenje rezultata'!C117&COUNTIF('Praćenje rezultata'!$C$4:C117,'Praćenje rezultata'!C117)","v":"0"}]
[null,115,{"$f":"'Praćenje rezultata'!C118&COUNTIF('Praćenje rezultata'!$C$4:C118,'Praćenje rezultata'!C118)","v":"0"}]
[null,116,{"$f":"'Praćenje rezultata'!C119&COUNTIF('Praćenje rezultata'!$C$4:C119,'Praćenje rezultata'!C119)","v":"0"}]
[null,117,{"$f":"'Praćenje rezultata'!C120&COUNTIF('Praćenje rezultata'!$C$4:C120,'Praćenje rezultata'!C120)","v":"0"}]
[null,118,{"$f":"'Praćenje rezultata'!C121&COUNTIF('Praćenje rezultata'!$C$4:C121,'Praćenje rezultata'!C121)","v":"0"}]
[null,119,{"$f":"'Praćenje rezultata'!C122&COUNTIF('Praćenje rezultata'!$C$4:C122,'Praćenje rezultata'!C122)","v":"0"}]
[null,120,{"$f":"'Praćenje rezultata'!C123&COUNTIF('Praćenje rezultata'!$C$4:C123,'Praćenje rezultata'!C123)","v":"0"}]
[null,121,{"$f":"'Praćenje rezultata'!C124&COUNTIF('Praćenje rezultata'!$C$4:C124,'Praćenje rezultata'!C124)","v":"0"}]
[null,122,{"$f":"'Praćenje rezultata'!C125&COUNTIF('Praćenje rezultata'!$C$4:C125,'Praćenje rezultata'!C125)","v":"0"}]
[null,123,{"$f":"'Praćenje rezultata'!C126&COUNTIF('Praćenje rezultata'!$C$4:C126,'Praćenje rezultata'!C126)","v":"0"}]
[null,124,{"$f":"'Praćenje rezultata'!C127&COUNTIF('Praćenje rezultata'!$C$4:C127,'Praćenje rezultata'!C127)","v":"0"}]
[null,125,{"$f":"'Praćenje rezultata'!C128&COUNTIF('Praćenje rezultata'!$C$4:C128,'Praćenje rezultata'!C128)","v":"0"}]
[null,126,{"$f":"'Praćenje rezultata'!C129&COUNTIF('Praćenje rezultata'!$C$4:C129,'Praćenje rezultata'!C129)","v":"0"}]
[null,127,{"$f":"'Praćenje rezultata'!C130&COUNTIF('Praćenje rezultata'!$C$4:C130,'Praćenje rezultata'!C130)","v":"0"}]
[null,128,{"$f":"'Praćenje rezultata'!C131&COUNTIF('Praćenje rezultata'!$C$4:C131,'Praćenje rezultata'!C131)","v":"0"}]
[null,129,{"$f":"'Praćenje rezultata'!C132&COUNTIF('Praćenje rezultata'!$C$4:C132,'Praćenje rezultata'!C132)","v":"0"}]
[null,130,{"$f":"'Praćenje rezultata'!C133&COUNTIF('Praćenje rezultata'!$C$4:C133,'Praćenje rezultata'!C133)","v":"0"}]
[null,131,{"$f":"'Praćenje rezultata'!C134&COUNTIF('Praćenje rezultata'!$C$4:C134,'Praćenje rezultata'!C134)","v":"0"}]
[null,132,{"$f":"'Praćenje rezultata'!C135&COUNTIF('Praćenje rezultata'!$C$4:C135,'Praćenje rezultata'!C135)","v":"0"}]
[null,133,{"$f":"'Praćenje rezultata'!C136&COUNTIF('Praćenje rezultata'!$C$4:C136,'Praćenje rezultata'!C136)","v":"0"}]
[null,134,{"$f":"'Praćenje rezultata'!C137&COUNTIF('Praćenje rezultata'!$C$4:C137,'Praćenje rezultata'!C137)","v":"0"}]
[null,135,{"$f":"'Praćenje rezultata'!C138&COUNTIF('Praćenje rezultata'!$C$4:C138,'Praćenje rezultata'!C138)","v":"0"}]
[null,136,{"$f":"'Praćenje rezultata'!C139&COUNTIF('Praćenje rezultata'!$C$4:C139,'Praćenje rezultata'!C139)","v":"0"}]
[null,137,{"$f":"'Praćenje rezultata'!C140&COUNTIF('Praćenje rezultata'!$C$4:C140,'Praćenje rezultata'!C140)","v":"0"}]
[null,138,{"$f":"'Praćenje rezultata'!C141&COUNTIF('Praćenje rezultata'!$C$4:C141,'Praćenje rezultata'!C141)","v":"0"}]
[null,139,{"$f":"'Praćenje rezultata'!C142&COUNTIF('Praćenje rezultata'!$C$4:C142,'Praćenje rezultata'!C142)","v":"0"}]
[null,140,{"$f":"'Praćenje rezultata'!C143&COUNTIF('Praćenje rezultata'!$C$4:C143,'Praćenje rezultata'!C143)","v":"0"}]
[null,141,{"$f":"'Praćenje rezultata'!C144&COUNTIF('Praćenje rezultata'!$C$4:C144,'Praćenje rezultata'!C144)","v":"0"}]
[null,142,{"$f":"'Praćenje rezultata'!C145&COUNTIF('Praćenje rezultata'!$C$4:C145,'Praćenje rezultata'!C145)","v":"0"}]
[null,143,{"$f":"'Praćenje rezultata'!C146&COUNTIF('Praćenje rezultata'!$C$4:C146,'Praćenje rezultata'!C146)","v":"0"}]
[null,144,{"$f":"'Praćenje rezultata'!C147&COUNTIF('Praćenje rezultata'!$C$4:C147,'Praćenje rezultata'!C147)","v":"0"}]
[null,145,{"$f":"'Praćenje rezultata'!C148&COUNTIF('Praćenje rezultata'!$C$4:C148,'Praćenje rezultata'!C148)","v":"0"}]
[null,146,{"$f":"'Praćenje rezultata'!C149&COUNTIF('Praćenje rezultata'!$C$4:C149,'Praćenje rezultata'!C149)","v":"0"}]
[null,147,{"$f":"'Praćenje rezultata'!C150&COUNTIF('Praćenje rezultata'!$C$4:C150,'Praćenje rezultata'!C150)","v":"0"}]
[null,148,{"$f":"'Praćenje rezultata'!C151&COUNTIF('Praćenje rezultata'!$C$4:C151,'Praćenje rezultata'!C151)","v":"0"}]
[null,149,{"$f":"'Praćenje rezultata'!C152&COUNTIF('Praćenje rezultata'!$C$4:C152,'Praćenje rezultata'!C152)","v":"0"}]
[null,150,{"$f":"'Praćenje rezultata'!C153&COUNTIF('Praćenje rezultata'!$C$4:C153,'Praćenje rezultata'!C153)","v":"0"}]
[null,151,{"$f":"'Praćenje rezultata'!C154&COUNTIF('Praćenje rezultata'!$C$4:C154,'Praćenje rezultata'!C154)","v":"0"}]
[null,152,{"$f":"'Praćenje rezultata'!C155&COUNTIF('Praćenje rezultata'!$C$4:C155,'Praćenje rezultata'!C155)","v":"0"}]
[null,153,{"$f":"'Praćenje rezultata'!C156&COUNTIF('Praćenje rezultata'!$C$4:C156,'Praćenje rezultata'!C156)","v":"0"}]
[null,154,{"$f":"'Praćenje rezultata'!C157&COUNTIF('Praćenje rezultata'!$C$4:C157,'Praćenje rezultata'!C157)","v":"0"}]
[null,155,{"$f":"'Praćenje rezultata'!C158&COUNTIF('Praćenje rezultata'!$C$4:C158,'Praćenje rezultata'!C158)","v":"0"}]
[null,156,{"$f":"'Praćenje rezultata'!C159&COUNTIF('Praćenje rezultata'!$C$4:C159,'Praćenje rezultata'!C159)","v":"0"}]
[null,157,{"$f":"'Praćenje rezultata'!C160&COUNTIF('Praćenje rezultata'!$C$4:C160,'Praćenje rezultata'!C160)","v":"0"}]
[null,158,{"$f":"'Praćenje rezultata'!C161&COUNTIF('Praćenje rezultata'!$C$4:C161,'Praćenje rezultata'!C161)","v":"0"}]
[null,159,{"$f":"'Praćenje rezultata'!C162&COUNTIF('Praćenje rezultata'!$C$4:C162,'Praćenje rezultata'!C162)","v":"0"}]
[null,160,{"$f":"'Praćenje rezultata'!C163&COUNTIF('Praćenje rezultata'!$C$4:C163,'Praćenje rezultata'!C163)","v":"0"}]
[null,161,{"$f":"'Praćenje rezultata'!C164&COUNTIF('Praćenje rezultata'!$C$4:C164,'Praćenje rezultata'!C164)","v":"0"}]
[null,162,{"$f":"'Praćenje rezultata'!C165&COUNTIF('Praćenje rezultata'!$C$4:C165,'Praćenje rezultata'!C165)","v":"0"}]
[null,163,{"$f":"'Praćenje rezultata'!C166&COUNTIF('Praćenje rezultata'!$C$4:C166,'Praćenje rezultata'!C166)","v":"0"}]
[null,164,{"$f":"'Praćenje rezultata'!C167&COUNTIF('Praćenje rezultata'!$C$4:C167,'Praćenje rezultata'!C167)","v":"0"}]
[null,165,{"$f":"'Praćenje rezultata'!C168&COUNTIF('Praćenje rezultata'!$C$4:C168,'Praćenje rezultata'!C168)","v":"0"}]
[null,166,{"$f":"'Praćenje rezultata'!C169&COUNTIF('Praćenje rezultata'!$C$4:C169,'Praćenje rezultata'!C169)","v":"0"}]
[null,167,{"$f":"'Praćenje rezultata'!C170&COUNTIF('Praćenje rezultata'!$C$4:C170,'Praćenje rezultata'!C170)","v":"0"}]
[null,168,{"$f":"'Praćenje rezultata'!C171&COUNTIF('Praćenje rezultata'!$C$4:C171,'Praćenje rezultata'!C171)","v":"0"}]
[null,169,{"$f":"'Praćenje rezultata'!C172&COUNTIF('Praćenje rezultata'!$C$4:C172,'Praćenje rezultata'!C172)","v":"0"}]
[null,170,{"$f":"'Praćenje rezultata'!C173&COUNTIF('Praćenje rezultata'!$C$4:C173,'Praćenje rezultata'!C173)","v":"0"}]
[null,171,{"$f":"'Praćenje rezultata'!C174&COUNTIF('Praćenje rezultata'!$C$4:C174,'Praćenje rezultata'!C174)","v":"0"}]
[null,172,{"$f":"'Praćenje rezultata'!C175&COUNTIF('Praćenje rezultata'!$C$4:C175,'Praćenje rezultata'!C175)","v":"0"}]
[null,173,{"$f":"'Praćenje rezultata'!C176&COUNTIF('Praćenje rezultata'!$C$4:C176,'Praćenje rezultata'!C176)","v":"0"}]
[null,174,{"$f":"'Praćenje rezultata'!C177&COUNTIF('Praćenje rezultata'!$C$4:C177,'Praćenje rezultata'!C177)","v":"0"}]
[null,175,{"$f":"'Praćenje rezultata'!C178&COUNTIF('Praćenje rezultata'!$C$4:C178,'Praćenje rezultata'!C178)","v":"0"}]
[null,176,{"$f":"'Praćenje rezultata'!C179&COUNTIF('Praćenje rezultata'!$C$4:C179,'Praćenje rezultata'!C179)","v":"0"}]
[null,177,{"$f":"'Praćenje rezultata'!C180&COUNTIF('Praćenje rezultata'!$C$4:C180,'Praćenje rezultata'!C180)","v":"0"}]
[null,178,{"$f":"'Praćenje rezultata'!C181&COUNTIF('Praćenje rezultata'!$C$4:C181,'Praćenje rezultata'!C181)","v":"0"}]
[null,179,{"$f":"'Praćenje rezultata'!C182&COUNTIF('Praćenje rezultata'!$C$4:C182,'Praćenje rezultata'!C182)","v":"0"}]
[null,180,{"$f":"'Praćenje rezultata'!C183&COUNTIF('Praćenje rezultata'!$C$4:C183,'Praćenje rezultata'!C183)","v":"0"}]
[null,181,{"$f":"'Praćenje rezultata'!C184&COUNTIF('Praćenje rezultata'!$C$4:C184,'Praćenje rezultata'!C184)","v":"0"}]
[null,182,{"$f":"'Praćenje rezultata'!C185&COUNTIF('Praćenje rezultata'!$C$4:C185,'Praćenje rezultata'!C185)","v":"0"}]
[null,183,{"$f":"'Praćenje rezultata'!C186&COUNTIF('Praćenje rezultata'!$C$4:C186,'Praćenje rezultata'!C186)","v":"0"}]
[null,184,{"$f":"'Praćenje rezultata'!C187&COUNTIF('Praćenje rezultata'!$C$4:C187,'Praćenje rezultata'!C187)","v":"0"}]
[null,185,{"$f":"'Praćenje rezultata'!C188&COUNTIF('Praćenje rezultata'!$C$4:C188,'Praćenje rezultata'!C188)","v":"0"}]
[null,186,{"$f":"'Praćenje rezultata'!C189&COUNTIF('Praćenje rezultata'!$C$4:C189,'Praćenje rezultata'!C189)","v":"0"}]
[null,187,{"$f":"'Praćenje rezultata'!C190&COUNTIF('Praćenje rezultata'!$C$4:C190,'Praćenje rezultata'!C190)","v":"0"}]
[null,188,{"$f":"'Praćenje rezultata'!C191&COUNTIF('Praćenje rezultata'!$C$4:C191,'Praćenje rezultata'!C191)","v":"0"}]
[null,189,{"$f":"'Praćenje rezultata'!C192&COUNTIF('Praćenje rezultata'!$C$4:C192,'Praćenje rezultata'!C192)","v":"0"}]
[null,190,{"$f":"'Praćenje rezultata'!C193&COUNTIF('Praćenje rezultata'!$C$4:C193,'Praćenje rezultata'!C193)","v":"0"}]
[null,191,{"$f":"'Praćenje rezultata'!C194&COUNTIF('Praćenje rezultata'!$C$4:C194,'Praćenje rezultata'!C194)","v":"0"}]
[null,192,{"$f":"'Praćenje rezultata'!C195&COUNTIF('Praćenje rezultata'!$C$4:C195,'Praćenje rezultata'!C195)","v":"0"}]
[null,193,{"$f":"'Praćenje rezultata'!C196&COUNTIF('Praćenje rezultata'!$C$4:C196,'Praćenje rezultata'!C196)","v":"0"}]
[null,194,{"$f":"'Praćenje rezultata'!C197&COUNTIF('Praćenje rezultata'!$C$4:C197,'Praćenje rezultata'!C197)","v":"0"}]
[null,195,{"$f":"'Praćenje rezultata'!C198&COUNTIF('Praćenje rezultata'!$C$4:C198,'Praćenje rezultata'!C198)","v":"0"}]
[null,196,{"$f":"'Praćenje rezultata'!C199&COUNTIF('Praćenje rezultata'!$C$4:C199,'Praćenje rezultata'!C199)","v":"0"}]
[null,197,{"$f":"'Praćenje rezultata'!C200&COUNTIF('Praćenje rezultata'!$C$4:C200,'Praćenje rezultata'!C200)","v":"0"}]
[null,198,{"$f":"'Praćenje rezultata'!C201&COUNTIF('Praćenje rezultata'!$C$4:C201,'Praćenje rezultata'!C201)","v":"0"}]
[null,199,{"$f":"'Praćenje rezultata'!C202&COUNTIF('Praćenje rezultata'!$C$4:C202,'Praćenje rezultata'!C202)","v":"0"}]
[null,200,{"$f":"'Praćenje rezultata'!C203&COUNTIF('Praćenje rezultata'!$C$4:C203,'Praćenje rezultata'!C203)","v":"0"}]
[null,201,{"$f":"'Praćenje rezultata'!C204&COUNTIF('Praćenje rezultata'!$C$4:C204,'Praćenje rezultata'!C204)","v":"0"}]
[null,202,{"$f":"'Praćenje rezultata'!C205&COUNTIF('Praćenje rezultata'!$C$4:C205,'Praćenje rezultata'!C205)","v":"0"}]
[null,203,{"$f":"'Praćenje rezultata'!C206&COUNTIF('Praćenje rezultata'!$C$4:C206,'Praćenje rezultata'!C206)","v":"0"}]
[null,204,{"$f":"'Praćenje rezultata'!C207&COUNTIF('Praćenje rezultata'!$C$4:C207,'Praćenje rezultata'!C207)","v":"0"}]
[null,205,{"$f":"'Praćenje rezultata'!C208&COUNTIF('Praćenje rezultata'!$C$4:C208,'Praćenje rezultata'!C208)","v":"0"}]
[null,206,{"$f":"'Praćenje rezultata'!C209&COUNTIF('Praćenje rezultata'!$C$4:C209,'Praćenje rezultata'!C209)","v":"0"}]
[null,207,{"$f":"'Praćenje rezultata'!C210&COUNTIF('Praćenje rezultata'!$C$4:C210,'Praćenje rezultata'!C210)","v":"0"}]
[null,208,{"$f":"'Praćenje rezultata'!C211&COUNTIF('Praćenje rezultata'!$C$4:C211,'Praćenje rezultata'!C211)","v":"0"}]
[null,209,{"$f":"'Praćenje rezultata'!C212&COUNTIF('Praćenje rezultata'!$C$4:C212,'Praćenje rezultata'!C212)","v":"0"}]
[null,210,{"$f":"'Praćenje rezultata'!C213&COUNTIF('Praćenje rezultata'!$C$4:C213,'Praćenje rezultata'!C213)","v":"0"}]
[null,211,{"$f":"'Praćenje rezultata'!C214&COUNTIF('Praćenje rezultata'!$C$4:C214,'Praćenje rezultata'!C214)","v":"0"}]
[null,212,{"$f":"'Praćenje rezultata'!C215&COUNTIF('Praćenje rezultata'!$C$4:C215,'Praćenje rezultata'!C215)","v":"0"}]
[null,213,{"$f":"'Praćenje rezultata'!C216&COUNTIF('Praćenje rezultata'!$C$4:C216,'Praćenje rezultata'!C216)","v":"0"}]
[null,214,{"$f":"'Praćenje rezultata'!C217&COUNTIF('Praćenje rezultata'!$C$4:C217,'Praćenje rezultata'!C217)","v":"0"}]
[null,215,{"$f":"'Praćenje rezultata'!C218&COUNTIF('Praćenje rezultata'!$C$4:C218,'Praćenje rezultata'!C218)","v":"0"}]
[null,216,{"$f":"'Praćenje rezultata'!C219&COUNTIF('Praćenje rezultata'!$C$4:C219,'Praćenje rezultata'!C219)","v":"0"}]
[null,217,{"$f":"'Praćenje rezultata'!C220&COUNTIF('Praćenje rezultata'!$C$4:C220,'Praćenje rezultata'!C220)","v":"0"}]
[null,218,{"$f":"'Praćenje rezultata'!C221&COUNTIF('Praćenje rezultata'!$C$4:C221,'Praćenje rezultata'!C221)","v":"0"}]
[null,219,{"$f":"'Praćenje rezultata'!C222&COUNTIF('Praćenje rezultata'!$C$4:C222,'Praćenje rezultata'!C222)","v":"0"}]
[null,220,{"$f":"'Praćenje rezultata'!C223&COUNTIF('Praćenje rezultata'!$C$4:C223,'Praćenje rezultata'!C223)","v":"0"}]
[null,221,{"$f":"'Praćenje rezultata'!C224&COUNTIF('Praćenje rezultata'!$C$4:C224,'Praćenje rezultata'!C224)","v":"0"}]
[null,222,{"$f":"'Praćenje rezultata'!C225&COUNTIF('Praćenje rezultata'!$C$4:C225,'Praćenje rezultata'!C225)","v":"0"}]
[null,223,{"$f":"'Praćenje rezultata'!C226&COUNTIF('Praćenje rezultata'!$C$4:C226,'Praćenje rezultata'!C226)","v":"0"}]
[null,224,{"$f":"'Praćenje rezultata'!C227&COUNTIF('Praćenje rezultata'!$C$4:C227,'Praćenje rezultata'!C227)","v":"0"}]
[null,225,{"$f":"'Praćenje rezultata'!C228&COUNTIF('Praćenje rezultata'!$C$4:C228,'Praćenje rezultata'!C228)","v":"0"}]
[null,226,{"$f":"'Praćenje rezultata'!C229&COUNTIF('Praćenje rezultata'!$C$4:C229,'Praćenje rezultata'!C229)","v":"0"}]
[null,227,{"$f":"'Praćenje rezultata'!C230&COUNTIF('Praćenje rezultata'!$C$4:C230,'Praćenje rezultata'!C230)","v":"0"}]
[null,228,{"$f":"'Praćenje rezultata'!C231&COUNTIF('Praćenje rezultata'!$C$4:C231,'Praćenje rezultata'!C231)","v":"0"}]
[null,229,{"$f":"'Praćenje rezultata'!C232&COUNTIF('Praćenje rezultata'!$C$4:C232,'Praćenje rezultata'!C232)","v":"0"}]
[null,230,{"$f":"'Praćenje rezultata'!C233&COUNTIF('Praćenje rezultata'!$C$4:C233,'Praćenje rezultata'!C233)","v":"0"}]
[null,231,{"$f":"'Praćenje rezultata'!C234&COUNTIF('Praćenje rezultata'!$C$4:C234,'Praćenje rezultata'!C234)","v":"0"}]
[null,232,{"$f":"'Praćenje rezultata'!C235&COUNTIF('Praćenje rezultata'!$C$4:C235,'Praćenje rezultata'!C235)","v":"0"}]
[null,233,{"$f":"'Praćenje rezultata'!C236&COUNTIF('Praćenje rezultata'!$C$4:C236,'Praćenje rezultata'!C236)","v":"0"}]
[null,234,{"$f":"'Praćenje rezultata'!C237&COUNTIF('Praćenje rezultata'!$C$4:C237,'Praćenje rezultata'!C237)","v":"0"}]
[null,235,{"$f":"'Praćenje rezultata'!C238&COUNTIF('Praćenje rezultata'!$C$4:C238,'Praćenje rezultata'!C238)","v":"0"}]
[null,236,{"$f":"'Praćenje rezultata'!C239&COUNTIF('Praćenje rezultata'!$C$4:C239,'Praćenje rezultata'!C239)","v":"0"}]
[null,237,{"$f":"'Praćenje rezultata'!C240&COUNTIF('Praćenje rezultata'!$C$4:C240,'Praćenje rezultata'!C240)","v":"0"}]
[null,238,{"$f":"'Praćenje rezultata'!C241&COUNTIF('Praćenje rezultata'!$C$4:C241,'Praćenje rezultata'!C241)","v":"0"}]
[null,239,{"$f":"'Praćenje rezultata'!C242&COUNTIF('Praćenje rezultata'!$C$4:C242,'Praćenje rezultata'!C242)","v":"0"}]
[null,240,{"$f":"'Praćenje rezultata'!C243&COUNTIF('Praćenje rezultata'!$C$4:C243,'Praćenje rezultata'!C243)","v":"0"}]
[null,241,{"$f":"'Praćenje rezultata'!C244&COUNTIF('Praćenje rezultata'!$C$4:C244,'Praćenje rezultata'!C244)","v":"0"}]
[null,242,{"$f":"'Praćenje rezultata'!C245&COUNTIF('Praćenje rezultata'!$C$4:C245,'Praćenje rezultata'!C245)","v":"0"}]
[null,243,{"$f":"'Praćenje rezultata'!C246&COUNTIF('Praćenje rezultata'!$C$4:C246,'Praćenje rezultata'!C246)","v":"0"}]
[null,244,{"$f":"'Praćenje rezultata'!C247&COUNTIF('Praćenje rezultata'!$C$4:C247,'Praćenje rezultata'!C247)","v":"0"}]
[null,245,{"$f":"'Praćenje rezultata'!C248&COUNTIF('Praćenje rezultata'!$C$4:C248,'Praćenje rezultata'!C248)","v":"0"}]
[null,246,{"$f":"'Praćenje rezultata'!C249&COUNTIF('Praćenje rezultata'!$C$4:C249,'Praćenje rezultata'!C249)","v":"0"}]
[null,247,{"$f":"'Praćenje rezultata'!C250&COUNTIF('Praćenje rezultata'!$C$4:C250,'Praćenje rezultata'!C250)","v":"0"}]
[null,248,{"$f":"'Praćenje rezultata'!C251&COUNTIF('Praćenje rezultata'!$C$4:C251,'Praćenje rezultata'!C251)","v":"0"}]
[null,249,{"$f":"'Praćenje rezultata'!C252&COUNTIF('Praćenje rezultata'!$C$4:C252,'Praćenje rezultata'!C252)","v":"0"}]
[null,250,{"$f":"'Praćenje rezultata'!C253&COUNTIF('Praćenje rezultata'!$C$4:C253,'Praćenje rezultata'!C253)","v":"0"}]
[null,251,{"$f":"'Praćenje rezultata'!C254&COUNTIF('Praćenje rezultata'!$C$4:C254,'Praćenje rezultata'!C254)","v":"0"}]
[null,252,{"$f":"'Praćenje rezultata'!C255&COUNTIF('Praćenje rezultata'!$C$4:C255,'Praćenje rezultata'!C255)","v":"0"}]
[null,253,{"$f":"'Praćenje rezultata'!C256&COUNTIF('Praćenje rezultata'!$C$4:C256,'Praćenje rezultata'!C256)","v":"0"}]
[null,254,{"$f":"'Praćenje rezultata'!C257&COUNTIF('Praćenje rezultata'!$C$4:C257,'Praćenje rezultata'!C257)","v":"0"}]
[null,255,{"$f":"'Praćenje rezultata'!C258&COUNTIF('Praćenje rezultata'!$C$4:C258,'Praćenje rezultata'!C258)","v":"0"}]
[null,256,{"$f":"'Praćenje rezultata'!C259&COUNTIF('Praćenje rezultata'!$C$4:C259,'Praćenje rezultata'!C259)","v":"0"}]
[null,257,{"$f":"'Praćenje rezultata'!C260&COUNTIF('Praćenje rezultata'!$C$4:C260,'Praćenje rezultata'!C260)","v":"0"}]
[null,258,{"$f":"'Praćenje rezultata'!C261&COUNTIF('Praćenje rezultata'!$C$4:C261,'Praćenje rezultata'!C261)","v":"0"}]
[null,259,{"$f":"'Praćenje rezultata'!C262&COUNTIF('Praćenje rezultata'!$C$4:C262,'Praćenje rezultata'!C262)","v":"0"}]
[null,260,{"$f":"'Praćenje rezultata'!C263&COUNTIF('Praćenje rezultata'!$C$4:C263,'Praćenje rezultata'!C263)","v":"0"}]
[null,261,{"$f":"'Praćenje rezultata'!C264&COUNTIF('Praćenje rezultata'!$C$4:C264,'Praćenje rezultata'!C264)","v":"0"}]
[null,262,{"$f":"'Praćenje rezultata'!C265&COUNTIF('Praćenje rezultata'!$C$4:C265,'Praćenje rezultata'!C265)","v":"0"}]
[null,263,{"$f":"'Praćenje rezultata'!C266&COUNTIF('Praćenje rezultata'!$C$4:C266,'Praćenje rezultata'!C266)","v":"0"}]
[null,264,{"$f":"'Praćenje rezultata'!C267&COUNTIF('Praćenje rezultata'!$C$4:C267,'Praćenje rezultata'!C267)","v":"0"}]
[null,265,{"$f":"'Praćenje rezultata'!C268&COUNTIF('Praćenje rezultata'!$C$4:C268,'Praćenje rezultata'!C268)","v":"0"}]
[null,266,{"$f":"'Praćenje rezultata'!C269&COUNTIF('Praćenje rezultata'!$C$4:C269,'Praćenje rezultata'!C269)","v":"0"}]
[null,267,{"$f":"'Praćenje rezultata'!C270&COUNTIF('Praćenje rezultata'!$C$4:C270,'Praćenje rezultata'!C270)","v":"0"}]
[null,268,{"$f":"'Praćenje rezultata'!C271&COUNTIF('Praćenje rezultata'!$C$4:C271,'Praćenje rezultata'!C271)","v":"0"}]
[null,269,{"$f":"'Praćenje rezultata'!C272&COUNTIF('Praćenje rezultata'!$C$4:C272,'Praćenje rezultata'!C272)","v":"0"}]
[null,270,{"$f":"'Praćenje rezultata'!C273&COUNTIF('Praćenje rezultata'!$C$4:C273,'Praćenje rezultata'!C273)","v":"0"}]
[null,271,{"$f":"'Praćenje rezultata'!C274&COUNTIF('Praćenje rezultata'!$C$4:C274,'Praćenje rezultata'!C274)","v":"0"}]
[null,272,{"$f":"'Praćenje rezultata'!C275&COUNTIF('Praćenje rezultata'!$C$4:C275,'Praćenje rezultata'!C275)","v":"0"}]
[null,273,{"$f":"'Praćenje rezultata'!C276&COUNTIF('Praćenje rezultata'!$C$4:C276,'Praćenje rezultata'!C276)","v":"0"}]
[null,274,{"$f":"'Praćenje rezultata'!C277&COUNTIF('Praćenje rezultata'!$C$4:C277,'Praćenje rezultata'!C277)","v":"0"}]
[null,275,{"$f":"'Praćenje rezultata'!C278&COUNTIF('Praćenje rezultata'!$C$4:C278,'Praćenje rezultata'!C278)","v":"0"}]
[null,276,{"$f":"'Praćenje rezultata'!C279&COUNTIF('Praćenje rezultata'!$C$4:C279,'Praćenje rezultata'!C279)","v":"0"}]
[null,277,{"$f":"'Praćenje rezultata'!C280&COUNTIF('Praćenje rezultata'!$C$4:C280,'Praćenje rezultata'!C280)","v":"0"}]
[null,278,{"$f":"'Praćenje rezultata'!C281&COUNTIF('Praćenje rezultata'!$C$4:C281,'Praćenje rezultata'!C281)","v":"0"}]
[null,279,{"$f":"'Praćenje rezultata'!C282&COUNTIF('Praćenje rezultata'!$C$4:C282,'Praćenje rezultata'!C282)","v":"0"}]
[null,280,{"$f":"'Praćenje rezultata'!C283&COUNTIF('Praćenje rezultata'!$C$4:C283,'Praćenje rezultata'!C283)","v":"0"}]
[null,281,{"$f":"'Praćenje rezultata'!C284&COUNTIF('Praćenje rezultata'!$C$4:C284,'Praćenje rezultata'!C284)","v":"0"}]
[null,282,{"$f":"'Praćenje rezultata'!C285&COUNTIF('Praćenje rezultata'!$C$4:C285,'Praćenje rezultata'!C285)","v":"0"}]
[null,283,{"$f":"'Praćenje rezultata'!C286&COUNTIF('Praćenje rezultata'!$C$4:C286,'Praćenje rezultata'!C286)","v":"0"}]
[null,284,{"$f":"'Praćenje rezultata'!C287&COUNTIF('Praćenje rezultata'!$C$4:C287,'Praćenje rezultata'!C287)","v":"0"}]
[null,285,{"$f":"'Praćenje rezultata'!C288&COUNTIF('Praćenje rezultata'!$C$4:C288,'Praćenje rezultata'!C288)","v":"0"}]
[null,286,{"$f":"'Praćenje rezultata'!C289&COUNTIF('Praćenje rezultata'!$C$4:C289,'Praćenje rezultata'!C289)","v":"0"}]
[null,287,{"$f":"'Praćenje rezultata'!C290&COUNTIF('Praćenje rezultata'!$C$4:C290,'Praćenje rezultata'!C290)","v":"0"}]
[null,288,{"$f":"'Praćenje rezultata'!C291&COUNTIF('Praćenje rezultata'!$C$4:C291,'Praćenje rezultata'!C291)","v":"0"}]
[null,289,{"$f":"'Praćenje rezultata'!C292&COUNTIF('Praćenje rezultata'!$C$4:C292,'Praćenje rezultata'!C292)","v":"0"}]
[null,290,{"$f":"'Praćenje rezultata'!C293&COUNTIF('Praćenje rezultata'!$C$4:C293,'Praćenje rezultata'!C293)","v":"0"}]
[null,291,{"$f":"'Praćenje rezultata'!C294&COUNTIF('Praćenje rezultata'!$C$4:C294,'Praćenje rezultata'!C294)","v":"0"}]
[null,292,{"$f":"'Praćenje rezultata'!C295&COUNTIF('Praćenje rezultata'!$C$4:C295,'Praćenje rezultata'!C295)","v":"0"}]
[null,293,{"$f":"'Praćenje rezultata'!C296&COUNTIF('Praćenje rezultata'!$C$4:C296,'Praćenje rezultata'!C296)","v":"0"}]
[null,294,{"$f":"'Praćenje rezultata'!C297&COUNTIF('Praćenje rezultata'!$C$4:C297,'Praćenje rezultata'!C297)","v":"0"}]
[null,295,{"$f":"'Praćenje rezultata'!C298&COUNTIF('Praćenje rezultata'!$C$4:C298,'Praćenje rezultata'!C298)","v":"0"}]
[null,296,{"$f":"'Praćenje rezultata'!C299&COUNTIF('Praćenje rezultata'!$C$4:C299,'Praćenje rezultata'!C299)","v":"0"}]
[null,297,{"$f":"'Praćenje rezultata'!C300&COUNTIF('Praćenje rezultata'!$C$4:C300,'Praćenje rezultata'!C300)","v":"0"}]
[null,298,{"$f":"'Praćenje rezultata'!C301&COUNTIF('Praćenje rezultata'!$C$4:C301,'Praćenje rezultata'!C301)","v":"0"}]
[null,299,{"$f":"'Praćenje rezultata'!C302&COUNTIF('Praćenje rezultata'!$C$4:C302,'Praćenje rezultata'!C302)","v":"0"}]
[null,300,{"$f":"'Praćenje rezultata'!C303&COUNTIF('Praćenje rezultata'!$C$4:C303,'Praćenje rezultata'!C303)","v":"0"}]
[null,301,{"$f":"'Praćenje rezultata'!C304&COUNTIF('Praćenje rezultata'!$C$4:C304,'Praćenje rezultata'!C304)","v":"0"}]
[null,302,{"$f":"'Praćenje rezultata'!C305&COUNTIF('Praćenje rezultata'!$C$4:C305,'Praćenje rezultata'!C305)","v":"0"}]
[null,303,{"$f":"'Praćenje rezultata'!C306&COUNTIF('Praćenje rezultata'!$C$4:C306,'Praćenje rezultata'!C306)","v":"0"}]
[null,304,{"$f":"'Praćenje rezultata'!C307&COUNTIF('Praćenje rezultata'!$C$4:C307,'Praćenje rezultata'!C307)","v":"0"}]
[null,305,{"$f":"'Praćenje rezultata'!C308&COUNTIF('Praćenje rezultata'!$C$4:C308,'Praćenje rezultata'!C308)","v":"0"}]
[null,306,{"$f":"'Praćenje rezultata'!C309&COUNTIF('Praćenje rezultata'!$C$4:C309,'Praćenje rezultata'!C309)","v":"0"}]
[null,307,{"$f":"'Praćenje rezultata'!C310&COUNTIF('Praćenje rezultata'!$C$4:C310,'Praćenje rezultata'!C310)","v":"0"}]
[null,308,{"$f":"'Praćenje rezultata'!C311&COUNTIF('Praćenje rezultata'!$C$4:C311,'Praćenje rezultata'!C311)","v":"0"}]
[null,309,{"$f":"'Praćenje rezultata'!C312&COUNTIF('Praćenje rezultata'!$C$4:C312,'Praćenje rezultata'!C312)","v":"0"}]
[null,310,{"$f":"'Praćenje rezultata'!C313&COUNTIF('Praćenje rezultata'!$C$4:C313,'Praćenje rezultata'!C313)","v":"0"}]
[null,311,{"$f":"'Praćenje rezultata'!C314&COUNTIF('Praćenje rezultata'!$C$4:C314,'Praćenje rezultata'!C314)","v":"0"}]
[null,312,{"$f":"'Praćenje rezultata'!C315&COUNTIF('Praćenje rezultata'!$C$4:C315,'Praćenje rezultata'!C315)","v":"0"}]
[null,313,{"$f":"'Praćenje rezultata'!C316&COUNTIF('Praćenje rezultata'!$C$4:C316,'Praćenje rezultata'!C316)","v":"0"}]
[null,314,{"$f":"'Praćenje rezultata'!C317&COUNTIF('Praćenje rezultata'!$C$4:C317,'Praćenje rezultata'!C317)","v":"0"}]
[null,315,{"$f":"'Praćenje rezultata'!C318&COUNTIF('Praćenje rezultata'!$C$4:C318,'Praćenje rezultata'!C318)","v":"0"}]
[null,316,{"$f":"'Praćenje rezultata'!C319&COUNTIF('Praćenje rezultata'!$C$4:C319,'Praćenje rezultata'!C319)","v":"0"}]
[null,317,{"$f":"'Praćenje rezultata'!C320&COUNTIF('Praćenje rezultata'!$C$4:C320,'Praćenje rezultata'!C320)","v":"0"}]
[null,318,{"$f":"'Praćenje rezultata'!C321&COUNTIF('Praćenje rezultata'!$C$4:C321,'Praćenje rezultata'!C321)","v":"0"}]
[null,319,{"$f":"'Praćenje rezultata'!C322&COUNTIF('Praćenje rezultata'!$C$4:C322,'Praćenje rezultata'!C322)","v":"0"}]
[null,320,{"$f":"'Praćenje rezultata'!C323&COUNTIF('Praćenje rezultata'!$C$4:C323,'Praćenje rezultata'!C323)","v":"0"}]
[null,321,{"$f":"'Praćenje rezultata'!C324&COUNTIF('Praćenje rezultata'!$C$4:C324,'Praćenje rezultata'!C324)","v":"0"}]
[null,322,{"$f":"'Praćenje rezultata'!C325&COUNTIF('Praćenje rezultata'!$C$4:C325,'Praćenje rezultata'!C325)","v":"0"}]
[null,323,{"$f":"'Praćenje rezultata'!C326&COUNTIF('Praćenje rezultata'!$C$4:C326,'Praćenje rezultata'!C326)","v":"0"}]
[null,324,{"$f":"'Praćenje rezultata'!C327&COUNTIF('Praćenje rezultata'!$C$4:C327,'Praćenje rezultata'!C327)","v":"0"}]
[null,325,{"$f":"'Praćenje rezultata'!C328&COUNTIF('Praćenje rezultata'!$C$4:C328,'Praćenje rezultata'!C328)","v":"0"}]
[null,326,{"$f":"'Praćenje rezultata'!C329&COUNTIF('Praćenje rezultata'!$C$4:C329,'Praćenje rezultata'!C329)","v":"0"}]
[null,327,{"$f":"'Praćenje rezultata'!C330&COUNTIF('Praćenje rezultata'!$C$4:C330,'Praćenje rezultata'!C330)","v":"0"}]
[null,328,{"$f":"'Praćenje rezultata'!C331&COUNTIF('Praćenje rezultata'!$C$4:C331,'Praćenje rezultata'!C331)","v":"0"}]
[null,329,{"$f":"'Praćenje rezultata'!C332&COUNTIF('Praćenje rezultata'!$C$4:C332,'Praćenje rezultata'!C332)","v":"0"}]
[null,330,{"$f":"'Praćenje rezultata'!C333&COUNTIF('Praćenje rezultata'!$C$4:C333,'Praćenje rezultata'!C333)","v":"0"}]
[null,331,{"$f":"'Praćenje rezultata'!C334&COUNTIF('Praćenje rezultata'!$C$4:C334,'Praćenje rezultata'!C334)","v":"0"}]
[null,332,{"$f":"'Praćenje rezultata'!C335&COUNTIF('Praćenje rezultata'!$C$4:C335,'Praćenje rezultata'!C335)","v":"0"}]
[null,333,{"$f":"'Praćenje rezultata'!C336&COUNTIF('Praćenje rezultata'!$C$4:C336,'Praćenje rezultata'!C336)","v":"0"}]
[null,334,{"$f":"'Praćenje rezultata'!C337&COUNTIF('Praćenje rezultata'!$C$4:C337,'Praćenje rezultata'!C337)","v":"0"}]
[null,335,{"$f":"'Praćenje rezultata'!C338&COUNTIF('Praćenje rezultata'!$C$4:C338,'Praćenje rezultata'!C338)","v":"0"}]
[null,336,{"$f":"'Praćenje rezultata'!C339&COUNTIF('Praćenje rezultata'!$C$4:C339,'Praćenje rezultata'!C339)","v":"0"}]
[null,337,{"$f":"'Praćenje rezultata'!C340&COUNTIF('Praćenje rezultata'!$C$4:C340,'Praćenje rezultata'!C340)","v":"0"}]
[null,338,{"$f":"'Praćenje rezultata'!C341&COUNTIF('Praćenje rezultata'!$C$4:C341,'Praćenje rezultata'!C341)","v":"0"}]
[null,339,{"$f":"'Praćenje rezultata'!C342&COUNTIF('Praćenje rezultata'!$C$4:C342,'Praćenje rezultata'!C342)","v":"0"}]
[null,340,{"$f":"'Praćenje rezultata'!C343&COUNTIF('Praćenje rezultata'!$C$4:C343,'Praćenje rezultata'!C343)","v":"0"}]
[null,341,{"$f":"'Praćenje rezultata'!C344&COUNTIF('Praćenje rezultata'!$C$4:C344,'Praćenje rezultata'!C344)","v":"0"}]
[null,342,{"$f":"'Praćenje rezultata'!C345&COUNTIF('Praćenje rezultata'!$C$4:C345,'Praćenje rezultata'!C345)","v":"0"}]
[null,343,{"$f":"'Praćenje rezultata'!C346&COUNTIF('Praćenje rezultata'!$C$4:C346,'Praćenje rezultata'!C346)","v":"0"}]
[null,344,{"$f":"'Praćenje rezultata'!C347&COUNTIF('Praćenje rezultata'!$C$4:C347,'Praćenje rezultata'!C347)","v":"0"}]
[null,345,{"$f":"'Praćenje rezultata'!C348&COUNTIF('Praćenje rezultata'!$C$4:C348,'Praćenje rezultata'!C348)","v":"0"}]
[null,346,{"$f":"'Praćenje rezultata'!C349&COUNTIF('Praćenje rezultata'!$C$4:C349,'Praćenje rezultata'!C349)","v":"0"}]
[null,347,{"$f":"'Praćenje rezultata'!C350&COUNTIF('Praćenje rezultata'!$C$4:C350,'Praćenje rezultata'!C350)","v":"0"}]
[null,348,{"$f":"'Praćenje rezultata'!C351&COUNTIF('Praćenje rezultata'!$C$4:C351,'Praćenje rezultata'!C351)","v":"0"}]
[null,349,{"$f":"'Praćenje rezultata'!C352&COUNTIF('Praćenje rezultata'!$C$4:C352,'Praćenje rezultata'!C352)","v":"0"}]
[null,350,{"$f":"'Praćenje rezultata'!C353&COUNTIF('Praćenje rezultata'!$C$4:C353,'Praćenje rezultata'!C353)","v":"0"}]
[null,351,{"$f":"'Praćenje rezultata'!C354&COUNTIF('Praćenje rezultata'!$C$4:C354,'Praćenje rezultata'!C354)","v":"0"}]
[null,352,{"$f":"'Praćenje rezultata'!C355&COUNTIF('Praćenje rezultata'!$C$4:C355,'Praćenje rezultata'!C355)","v":"0"}]
[null,353,{"$f":"'Praćenje rezultata'!C356&COUNTIF('Praćenje rezultata'!$C$4:C356,'Praćenje rezultata'!C356)","v":"0"}]
[null,354,{"$f":"'Praćenje rezultata'!C357&COUNTIF('Praćenje rezultata'!$C$4:C357,'Praćenje rezultata'!C357)","v":"0"}]
[null,355,{"$f":"'Praćenje rezultata'!C358&COUNTIF('Praćenje rezultata'!$C$4:C358,'Praćenje rezultata'!C358)","v":"0"}]
[null,356,{"$f":"'Praćenje rezultata'!C359&COUNTIF('Praćenje rezultata'!$C$4:C359,'Praćenje rezultata'!C359)","v":"0"}]
[null,357,{"$f":"'Praćenje rezultata'!C360&COUNTIF('Praćenje rezultata'!$C$4:C360,'Praćenje rezultata'!C360)","v":"0"}]
[null,358,{"$f":"'Praćenje rezultata'!C361&COUNTIF('Praćenje rezultata'!$C$4:C361,'Praćenje rezultata'!C361)","v":"0"}]
[null,359,{"$f":"'Praćenje rezultata'!C362&COUNTIF('Praćenje rezultata'!$C$4:C362,'Praćenje rezultata'!C362)","v":"0"}]
[null,360,{"$f":"'Praćenje rezultata'!C363&COUNTIF('Praćenje rezultata'!$C$4:C363,'Praćenje rezultata'!C363)","v":"0"}]
[null,361,{"$f":"'Praćenje rezultata'!C364&COUNTIF('Praćenje rezultata'!$C$4:C364,'Praćenje rezultata'!C364)","v":"0"}]
[null,362,{"$f":"'Praćenje rezultata'!C365&COUNTIF('Praćenje rezultata'!$C$4:C365,'Praćenje rezultata'!C365)","v":"0"}]
[null,363,{"$f":"'Praćenje rezultata'!C366&COUNTIF('Praćenje rezultata'!$C$4:C366,'Praćenje rezultata'!C366)","v":"0"}]
[null,364,{"$f":"'Praćenje rezultata'!C367&COUNTIF('Praćenje rezultata'!$C$4:C367,'Praćenje rezultata'!C367)","v":"0"}]
[null,365,{"$f":"'Praćenje rezultata'!C368&COUNTIF('Praćenje rezultata'!$C$4:C368,'Praćenje rezultata'!C368)","v":"0"}]
[null,366,{"$f":"'Praćenje rezultata'!C369&COUNTIF('Praćenje rezultata'!$C$4:C369,'Praćenje rezultata'!C369)","v":"0"}]
[null,367,{"$f":"'Praćenje rezultata'!C370&COUNTIF('Praćenje rezultata'!$C$4:C370,'Praćenje rezultata'!C370)","v":"0"}]
[null,368,{"$f":"'Praćenje rezultata'!C371&COUNTIF('Praćenje rezultata'!$C$4:C371,'Praćenje rezultata'!C371)","v":"0"}]
[null,369,{"$f":"'Praćenje rezultata'!C372&COUNTIF('Praćenje rezultata'!$C$4:C372,'Praćenje rezultata'!C372)","v":"0"}]
[null,370,{"$f":"'Praćenje rezultata'!C373&COUNTIF('Praćenje rezultata'!$C$4:C373,'Praćenje rezultata'!C373)","v":"0"}]
[null,371,{"$f":"'Praćenje rezultata'!C374&COUNTIF('Praćenje rezultata'!$C$4:C374,'Praćenje rezultata'!C374)","v":"0"}]
[null,372,{"$f":"'Praćenje rezultata'!C375&COUNTIF('Praćenje rezultata'!$C$4:C375,'Praćenje rezultata'!C375)","v":"0"}]
[null,373,{"$f":"'Praćenje rezultata'!C376&COUNTIF('Praćenje rezultata'!$C$4:C376,'Praćenje rezultata'!C376)","v":"0"}]
[null,374,{"$f":"'Praćenje rezultata'!C377&COUNTIF('Praćenje rezultata'!$C$4:C377,'Praćenje rezultata'!C377)","v":"0"}]
[null,375,{"$f":"'Praćenje rezultata'!C378&COUNTIF('Praćenje rezultata'!$C$4:C378,'Praćenje rezultata'!C378)","v":"0"}]
[null,376,{"$f":"'Praćenje rezultata'!C379&COUNTIF('Praćenje rezultata'!$C$4:C379,'Praćenje rezultata'!C379)","v":"0"}]
[null,377,{"$f":"'Praćenje rezultata'!C380&COUNTIF('Praćenje rezultata'!$C$4:C380,'Praćenje rezultata'!C380)","v":"0"}]
[null,378,{"$f":"'Praćenje rezultata'!C381&COUNTIF('Praćenje rezultata'!$C$4:C381,'Praćenje rezultata'!C381)","v":"0"}]
[null,379,{"$f":"'Praćenje rezultata'!C382&COUNTIF('Praćenje rezultata'!$C$4:C382,'Praćenje rezultata'!C382)","v":"0"}]
[null,380,{"$f":"'Praćenje rezultata'!C383&COUNTIF('Praćenje rezultata'!$C$4:C383,'Praćenje rezultata'!C383)","v":"0"}]
[null,381,{"$f":"'Praćenje rezultata'!C384&COUNTIF('Praćenje rezultata'!$C$4:C384,'Praćenje rezultata'!C384)","v":"0"}]
[null,382,{"$f":"'Praćenje rezultata'!C385&COUNTIF('Praćenje rezultata'!$C$4:C385,'Praćenje rezultata'!C385)","v":"0"}]
[null,383,{"$f":"'Praćenje rezultata'!C386&COUNTIF('Praćenje rezultata'!$C$4:C386,'Praćenje rezultata'!C386)","v":"0"}]
[null,384,{"$f":"'Praćenje rezultata'!C387&COUNTIF('Praćenje rezultata'!$C$4:C387,'Praćenje rezultata'!C387)","v":"0"}]
[null,385,{"$f":"'Praćenje rezultata'!C388&COUNTIF('Praćenje rezultata'!$C$4:C388,'Praćenje rezultata'!C388)","v":"0"}]
[null,386,{"$f":"'Praćenje rezultata'!C389&COUNTIF('Praćenje rezultata'!$C$4:C389,'Praćenje rezultata'!C389)","v":"0"}]
[null,387,{"$f":"'Praćenje rezultata'!C390&COUNTIF('Praćenje rezultata'!$C$4:C390,'Praćenje rezultata'!C390)","v":"0"}]
[null,388,{"$f":"'Praćenje rezultata'!C391&COUNTIF('Praćenje rezultata'!$C$4:C391,'Praćenje rezultata'!C391)","v":"0"}]
[null,389,{"$f":"'Praćenje rezultata'!C392&COUNTIF('Praćenje rezultata'!$C$4:C392,'Praćenje rezultata'!C392)","v":"0"}]
[null,390,{"$f":"'Praćenje rezultata'!C393&COUNTIF('Praćenje rezultata'!$C$4:C393,'Praćenje rezultata'!C393)","v":"0"}]
[null,391,{"$f":"'Praćenje rezultata'!C394&COUNTIF('Praćenje rezultata'!$C$4:C394,'Praćenje rezultata'!C394)","v":"0"}]
[null,392,{"$f":"'Praćenje rezultata'!C395&COUNTIF('Praćenje rezultata'!$C$4:C395,'Praćenje rezultata'!C395)","v":"0"}]
[null,393,{"$f":"'Praćenje rezultata'!C396&COUNTIF('Praćenje rezultata'!$C$4:C396,'Praćenje rezultata'!C396)","v":"0"}]
[null,394,{"$f":"'Praćenje rezultata'!C397&COUNTIF('Praćenje rezultata'!$C$4:C397,'Praćenje rezultata'!C397)","v":"0"}]
[null,395,{"$f":"'Praćenje rezultata'!C398&COUNTIF('Praćenje rezultata'!$C$4:C398,'Praćenje rezultata'!C398)","v":"0"}]
[null,396,{"$f":"'Praćenje rezultata'!C399&COUNTIF('Praćenje rezultata'!$C$4:C399,'Praćenje rezultata'!C399)","v":"0"}]
[null,397,{"$f":"'Praćenje rezultata'!C400&COUNTIF('Praćenje rezultata'!$C$4:C400,'Praćenje rezultata'!C400)","v":"0"}]
[null,398,{"$f":"'Praćenje rezultata'!C401&COUNTIF('Praćenje rezultata'!$C$4:C401,'Praćenje rezultata'!C401)","v":"0"}]
[null,399,{"$f":"'Praćenje rezultata'!C402&COUNTIF('Praćenje rezultata'!$C$4:C402,'Praćenje rezultata'!C402)","v":"0"}]
[null,400,{"$f":"'Praćenje rezultata'!C403&COUNTIF('Praćenje rezultata'!$C$4:C403,'Praćenje rezultata'!C403)","v":"0"}]
[null,401,{"$f":"'Praćenje rezultata'!C404&COUNTIF('Praćenje rezultata'!$C$4:C404,'Praćenje rezultata'!C404)","v":"0"}]
[null,402,{"$f":"'Praćenje rezultata'!C405&COUNTIF('Praćenje rezultata'!$C$4:C405,'Praćenje rezultata'!C405)","v":"0"}]
[null,403,{"$f":"'Praćenje rezultata'!C406&COUNTIF('Praćenje rezultata'!$C$4:C406,'Praćenje rezultata'!C406)","v":"0"}]
[null,404,{"$f":"'Praćenje rezultata'!C407&COUNTIF('Praćenje rezultata'!$C$4:C407,'Praćenje rezultata'!C407)","v":"0"}]
[null,405,{"$f":"'Praćenje rezultata'!C408&COUNTIF('Praćenje rezultata'!$C$4:C408,'Praćenje rezultata'!C408)","v":"0"}]
[null,406,{"$f":"'Praćenje rezultata'!C409&COUNTIF('Praćenje rezultata'!$C$4:C409,'Praćenje rezultata'!C409)","v":"0"}]
[null,407,{"$f":"'Praćenje rezultata'!C410&COUNTIF('Praćenje rezultata'!$C$4:C410,'Praćenje rezultata'!C410)","v":"0"}]
[null,408,{"$f":"'Praćenje rezultata'!C411&COUNTIF('Praćenje rezultata'!$C$4:C411,'Praćenje rezultata'!C411)","v":"0"}]
[null,409,{"$f":"'Praćenje rezultata'!C412&COUNTIF('Praćenje rezultata'!$C$4:C412,'Praćenje rezultata'!C412)","v":"0"}]
[null,410,{"$f":"'Praćenje rezultata'!C413&COUNTIF('Praćenje rezultata'!$C$4:C413,'Praćenje rezultata'!C413)","v":"0"}]
[null,411,{"$f":"'Praćenje rezultata'!C414&COUNTIF('Praćenje rezultata'!$C$4:C414,'Praćenje rezultata'!C414)","v":"0"}]
[null,412,{"$f":"'Praćenje rezultata'!C415&COUNTIF('Praćenje rezultata'!$C$4:C415,'Praćenje rezultata'!C415)","v":"0"}]
[null,413,{"$f":"'Praćenje rezultata'!C416&COUNTIF('Praćenje rezultata'!$C$4:C416,'Praćenje rezultata'!C416)","v":"0"}]
[null,414,{"$f":"'Praćenje rezultata'!C417&COUNTIF('Praćenje rezultata'!$C$4:C417,'Praćenje rezultata'!C417)","v":"0"}]
[null,415,{"$f":"'Praćenje rezultata'!C418&COUNTIF('Praćenje rezultata'!$C$4:C418,'Praćenje rezultata'!C418)","v":"0"}]
[null,416,{"$f":"'Praćenje rezultata'!C419&COUNTIF('Praćenje rezultata'!$C$4:C419,'Praćenje rezultata'!C419)","v":"0"}]
[null,417,{"$f":"'Praćenje rezultata'!C420&COUNTIF('Praćenje rezultata'!$C$4:C420,'Praćenje rezultata'!C420)","v":"0"}]
[null,418,{"$f":"'Praćenje rezultata'!C421&COUNTIF('Praćenje rezultata'!$C$4:C421,'Praćenje rezultata'!C421)","v":"0"}]
[null,419,{"$f":"'Praćenje rezultata'!C422&COUNTIF('Praćenje rezultata'!$C$4:C422,'Praćenje rezultata'!C422)","v":"0"}]
[null,420,{"$f":"'Praćenje rezultata'!C423&COUNTIF('Praćenje rezultata'!$C$4:C423,'Praćenje rezultata'!C423)","v":"0"}]
[null,421,{"$f":"'Praćenje rezultata'!C424&COUNTIF('Praćenje rezultata'!$C$4:C424,'Praćenje rezultata'!C424)","v":"0"}]
[null,422,{"$f":"'Praćenje rezultata'!C425&COUNTIF('Praćenje rezultata'!$C$4:C425,'Praćenje rezultata'!C425)","v":"0"}]
[null,423,{"$f":"'Praćenje rezultata'!C426&COUNTIF('Praćenje rezultata'!$C$4:C426,'Praćenje rezultata'!C426)","v":"0"}]
[null,424,{"$f":"'Praćenje rezultata'!C427&COUNTIF('Praćenje rezultata'!$C$4:C427,'Praćenje rezultata'!C427)","v":"0"}]
[null,425,{"$f":"'Praćenje rezultata'!C428&COUNTIF('Praćenje rezultata'!$C$4:C428,'Praćenje rezultata'!C428)","v":"0"}]
[null,426,{"$f":"'Praćenje rezultata'!C429&COUNTIF('Praćenje rezultata'!$C$4:C429,'Praćenje rezultata'!C429)","v":"0"}]
[null,427,{"$f":"'Praćenje rezultata'!C430&COUNTIF('Praćenje rezultata'!$C$4:C430,'Praćenje rezultata'!C430)","v":"0"}]
[null,428,{"$f":"'Praćenje rezultata'!C431&COUNTIF('Praćenje rezultata'!$C$4:C431,'Praćenje rezultata'!C431)","v":"0"}]
[null,429,{"$f":"'Praćenje rezultata'!C432&COUNTIF('Praćenje rezultata'!$C$4:C432,'Praćenje rezultata'!C432)","v":"0"}]
[null,430,{"$f":"'Praćenje rezultata'!C433&COUNTIF('Praćenje rezultata'!$C$4:C433,'Praćenje rezultata'!C433)","v":"0"}]
[null,431,{"$f":"'Praćenje rezultata'!C434&COUNTIF('Praćenje rezultata'!$C$4:C434,'Praćenje rezultata'!C434)","v":"0"}]
[null,432,{"$f":"'Praćenje rezultata'!C435&COUNTIF('Praćenje rezultata'!$C$4:C435,'Praćenje rezultata'!C435)","v":"0"}]
[null,433,{"$f":"'Praćenje rezultata'!C436&COUNTIF('Praćenje rezultata'!$C$4:C436,'Praćenje rezultata'!C436)","v":"0"}]
[null,434,{"$f":"'Praćenje rezultata'!C437&COUNTIF('Praćenje rezultata'!$C$4:C437,'Praćenje rezultata'!C437)","v":"0"}]
[null,435,{"$f":"'Praćenje rezultata'!C438&COUNTIF('Praćenje rezultata'!$C$4:C438,'Praćenje rezultata'!C438)","v":"0"}]
[null,436,{"$f":"'Praćenje rezultata'!C439&COUNTIF('Praćenje rezultata'!$C$4:C439,'Praćenje rezultata'!C439)","v":"0"}]
[null,437,{"$f":"'Praćenje rezultata'!C440&COUNTIF('Praćenje rezultata'!$C$4:C440,'Praćenje rezultata'!C440)","v":"0"}]
[null,438,{"$f":"'Praćenje rezultata'!C441&COUNTIF('Praćenje rezultata'!$C$4:C441,'Praćenje rezultata'!C441)","v":"0"}]
[null,439,{"$f":"'Praćenje rezultata'!C442&COUNTIF('Praćenje rezultata'!$C$4:C442,'Praćenje rezultata'!C442)","v":"0"}]
[null,440,{"$f":"'Praćenje rezultata'!C443&COUNTIF('Praćenje rezultata'!$C$4:C443,'Praćenje rezultata'!C443)","v":"0"}]
[null,441,{"$f":"'Praćenje rezultata'!C444&COUNTIF('Praćenje rezultata'!$C$4:C444,'Praćenje rezultata'!C444)","v":"0"}]
[null,442,{"$f":"'Praćenje rezultata'!C445&COUNTIF('Praćenje rezultata'!$C$4:C445,'Praćenje rezultata'!C445)","v":"0"}]
[null,443,{"$f":"'Praćenje rezultata'!C446&COUNTIF('Praćenje rezultata'!$C$4:C446,'Praćenje rezultata'!C446)","v":"0"}]
[null,444,{"$f":"'Praćenje rezultata'!C447&COUNTIF('Praćenje rezultata'!$C$4:C447,'Praćenje rezultata'!C447)","v":"0"}]
[null,445,{"$f":"'Praćenje rezultata'!C448&COUNTIF('Praćenje rezultata'!$C$4:C448,'Praćenje rezultata'!C448)","v":"0"}]
[null,446,{"$f":"'Praćenje rezultata'!C449&COUNTIF('Praćenje rezultata'!$C$4:C449,'Praćenje rezultata'!C449)","v":"0"}]
[null,447,{"$f":"'Praćenje rezultata'!C450&COUNTIF('Praćenje rezultata'!$C$4:C450,'Praćenje rezultata'!C450)","v":"0"}]
[null,448,{"$f":"'Praćenje rezultata'!C451&COUNTIF('Praćenje rezultata'!$C$4:C451,'Praćenje rezultata'!C451)","v":"0"}]
[null,449,{"$f":"'Praćenje rezultata'!C452&COUNTIF('Praćenje rezultata'!$C$4:C452,'Praćenje rezultata'!C452)","v":"0"}]
[null,450,{"$f":"'Praćenje rezultata'!C453&COUNTIF('Praćenje rezultata'!$C$4:C453,'Praćenje rezultata'!C453)","v":"0"}]
[null,451,{"$f":"'Praćenje rezultata'!C454&COUNTIF('Praćenje rezultata'!$C$4:C454,'Praćenje rezultata'!C454)","v":"0"}]
[null,452,{"$f":"'Praćenje rezultata'!C455&COUNTIF('Praćenje rezultata'!$C$4:C455,'Praćenje rezultata'!C455)","v":"0"}]
[null,453,{"$f":"'Praćenje rezultata'!C456&COUNTIF('Praćenje rezultata'!$C$4:C456,'Praćenje rezultata'!C456)","v":"0"}]
[null,454,{"$f":"'Praćenje rezultata'!C457&COUNTIF('Praćenje rezultata'!$C$4:C457,'Praćenje rezultata'!C457)","v":"0"}]
[null,455,{"$f":"'Praćenje rezultata'!C458&COUNTIF('Praćenje rezultata'!$C$4:C458,'Praćenje rezultata'!C458)","v":"0"}]
[null,456,{"$f":"'Praćenje rezultata'!C459&COUNTIF('Praćenje rezultata'!$C$4:C459,'Praćenje rezultata'!C459)","v":"0"}]
[null,457,{"$f":"'Praćenje rezultata'!C460&COUNTIF('Praćenje rezultata'!$C$4:C460,'Praćenje rezultata'!C460)","v":"0"}]
[null,458,{"$f":"'Praćenje rezultata'!C461&COUNTIF('Praćenje rezultata'!$C$4:C461,'Praćenje rezultata'!C461)","v":"0"}]
[null,459,{"$f":"'Praćenje rezultata'!C462&COUNTIF('Praćenje rezultata'!$C$4:C462,'Praćenje rezultata'!C462)","v":"0"}]
[null,460,{"$f":"'Praćenje rezultata'!C463&COUNTIF('Praćenje rezultata'!$C$4:C463,'Praćenje rezultata'!C463)","v":"0"}]
[null,461,{"$f":"'Praćenje rezultata'!C464&COUNTIF('Praćenje rezultata'!$C$4:C464,'Praćenje rezultata'!C464)","v":"0"}]
[null,462,{"$f":"'Praćenje rezultata'!C465&COUNTIF('Praćenje rezultata'!$C$4:C465,'Praćenje rezultata'!C465)","v":"0"}]
[null,463,{"$f":"'Praćenje rezultata'!C466&COUNTIF('Praćenje rezultata'!$C$4:C466,'Praćenje rezultata'!C466)","v":"0"}]
[null,464,{"$f":"'Praćenje rezultata'!C467&COUNTIF('Praćenje rezultata'!$C$4:C467,'Praćenje rezultata'!C467)","v":"0"}]
[null,465,{"$f":"'Praćenje rezultata'!C468&COUNTIF('Praćenje rezultata'!$C$4:C468,'Praćenje rezultata'!C468)","v":"0"}]
[null,466,{"$f":"'Praćenje rezultata'!C469&COUNTIF('Praćenje rezultata'!$C$4:C469,'Praćenje rezultata'!C469)","v":"0"}]
[null,467,{"$f":"'Praćenje rezultata'!C470&COUNTIF('Praćenje rezultata'!$C$4:C470,'Praćenje rezultata'!C470)","v":"0"}]
[null,468,{"$f":"'Praćenje rezultata'!C471&COUNTIF('Praćenje rezultata'!$C$4:C471,'Praćenje rezultata'!C471)","v":"0"}]
[null,469,{"$f":"'Praćenje rezultata'!C472&COUNTIF('Praćenje rezultata'!$C$4:C472,'Praćenje rezultata'!C472)","v":"0"}]
[null,470,{"$f":"'Praćenje rezultata'!C473&COUNTIF('Praćenje rezultata'!$C$4:C473,'Praćenje rezultata'!C473)","v":"0"}]
[null,471,{"$f":"'Praćenje rezultata'!C474&COUNTIF('Praćenje rezultata'!$C$4:C474,'Praćenje rezultata'!C474)","v":"0"}]
[null,472,{"$f":"'Praćenje rezultata'!C475&COUNTIF('Praćenje rezultata'!$C$4:C475,'Praćenje rezultata'!C475)","v":"0"}]
[null,473,{"$f":"'Praćenje rezultata'!C476&COUNTIF('Praćenje rezultata'!$C$4:C476,'Praćenje rezultata'!C476)","v":"0"}]
[null,474,{"$f":"'Praćenje rezultata'!C477&COUNTIF('Praćenje rezultata'!$C$4:C477,'Praćenje rezultata'!C477)","v":"0"}]
[null,475,{"$f":"'Praćenje rezultata'!C478&COUNTIF('Praćenje rezultata'!$C$4:C478,'Praćenje rezultata'!C478)","v":"0"}]
[null,476,{"$f":"'Praćenje rezultata'!C479&COUNTIF('Praćenje rezultata'!$C$4:C479,'Praćenje rezultata'!C479)","v":"0"}]
[null,477,{"$f":"'Praćenje rezultata'!C480&COUNTIF('Praćenje rezultata'!$C$4:C480,'Praćenje rezultata'!C480)","v":"0"}]
[null,478,{"$f":"'Praćenje rezultata'!C481&COUNTIF('Praćenje rezultata'!$C$4:C481,'Praćenje rezultata'!C481)","v":"0"}]
[null,479,{"$f":"'Praćenje rezultata'!C482&COUNTIF('Praćenje rezultata'!$C$4:C482,'Praćenje rezultata'!C482)","v":"0"}]
[null,480,{"$f":"'Praćenje rezultata'!C483&COUNTIF('Praćenje rezultata'!$C$4:C483,'Praćenje rezultata'!C483)","v":"0"}]
[null,481,{"$f":"'Praćenje rezultata'!C484&COUNTIF('Praćenje rezultata'!$C$4:C484,'Praćenje rezultata'!C484)","v":"0"}]
[null,482,{"$f":"'Praćenje rezultata'!C485&COUNTIF('Praćenje rezultata'!$C$4:C485,'Praćenje rezultata'!C485)","v":"0"}]
[null,483,{"$f":"'Praćenje rezultata'!C486&COUNTIF('Praćenje rezultata'!$C$4:C486,'Praćenje rezultata'!C486)","v":"0"}]
[null,484,{"$f":"'Praćenje rezultata'!C487&COUNTIF('Praćenje rezultata'!$C$4:C487,'Praćenje rezultata'!C487)","v":"0"}]
[null,485,{"$f":"'Praćenje rezultata'!C488&COUNTIF('Praćenje rezultata'!$C$4:C488,'Praćenje rezultata'!C488)","v":"0"}]
[null,486,{"$f":"'Praćenje rezultata'!C489&COUNTIF('Praćenje rezultata'!$C$4:C489,'Praćenje rezultata'!C489)","v":"0"}]
[null,487,{"$f":"'Praćenje rezultata'!C490&COUNTIF('Praćenje rezultata'!$C$4:C490,'Praćenje rezultata'!C490)","v":"0"}]
[null,488,{"$f":"'Praćenje rezultata'!C491&COUNTIF('Praćenje rezultata'!$C$4:C491,'Praćenje rezultata'!C491)","v":"0"}]
[null,489,{"$f":"'Praćenje rezultata'!C492&COUNTIF('Praćenje rezultata'!$C$4:C492,'Praćenje rezultata'!C492)","v":"0"}]
[null,490,{"$f":"'Praćenje rezultata'!C493&COUNTIF('Praćenje rezultata'!$C$4:C493,'Praćenje rezultata'!C493)","v":"0"}]
[null,491,{"$f":"'Praćenje rezultata'!C494&COUNTIF('Praćenje rezultata'!$C$4:C494,'Praćenje rezultata'!C494)","v":"0"}]
[null,492,{"$f":"'Praćenje rezultata'!C495&COUNTIF('Praćenje rezultata'!$C$4:C495,'Praćenje rezultata'!C495)","v":"0"}]
[null,493,{"$f":"'Praćenje rezultata'!C496&COUNTIF('Praćenje rezultata'!$C$4:C496,'Praćenje rezultata'!C496)","v":"0"}]
[null,494,{"$f":"'Praćenje rezultata'!C497&COUNTIF('Praćenje rezultata'!$C$4:C497,'Praćenje rezultata'!C497)","v":"0"}]
[null,495,{"$f":"'Praćenje rezultata'!C498&COUNTIF('Praćenje rezultata'!$C$4:C498,'Praćenje rezultata'!C498)","v":"0"}]
[null,496,{"$f":"'Praćenje rezultata'!C499&COUNTIF('Praćenje rezultata'!$C$4:C499,'Praćenje rezultata'!C499)","v":"0"}]
[null,497,{"$f":"'Praćenje rezultata'!C500&COUNTIF('Praćenje rezultata'!$C$4:C500,'Praćenje rezultata'!C500)","v":"0"}]
[null,498,{"$f":"'Praćenje rezultata'!C501&COUNTIF('Praćenje rezultata'!$C$4:C501,'Praćenje rezultata'!C501)","v":"0"}]
[null,499,{"$f":"'Praćenje rezultata'!C502&COUNTIF('Praćenje rezultata'!$C$4:C502,'Praćenje rezultata'!C502)","v":"0"}]
[null,500,{"$f":"'Praćenje rezultata'!C503&COUNTIF('Praćenje rezultata'!$C$4:C503,'Praćenje rezultata'!C503)","v":"0"}]
[null,501,{"$f":"'Praćenje rezultata'!C504&COUNTIF('Praćenje rezultata'!$C$4:C504,'Praćenje rezultata'!C504)","v":"0"}]
[null,502,{"$f":"'Praćenje rezultata'!C505&COUNTIF('Praćenje rezultata'!$C$4:C505,'Praćenje rezultata'!C505)","v":"0"}]
[null,503,{"$f":"'Praćenje rezultata'!C506&COUNTIF('Praćenje rezultata'!$C$4:C506,'Praćenje rezultata'!C506)","v":"0"}]
[null,504,{"$f":"'Praćenje rezultata'!C507&COUNTIF('Praćenje rezultata'!$C$4:C507,'Praćenje rezultata'!C507)","v":"0"}]
[null,505,{"$f":"'Praćenje rezultata'!C508&COUNTIF('Praćenje rezultata'!$C$4:C508,'Praćenje rezultata'!C508)","v":"0"}]
[null,506,{"$f":"'Praćenje rezultata'!C509&COUNTIF('Praćenje rezultata'!$C$4:C509,'Praćenje rezultata'!C509)","v":"0"}]
[null,507,{"$f":"'Praćenje rezultata'!C510&COUNTIF('Praćenje rezultata'!$C$4:C510,'Praćenje rezultata'!C510)","v":"0"}]
[null,508,{"$f":"'Praćenje rezultata'!C511&COUNTIF('Praćenje rezultata'!$C$4:C511,'Praćenje rezultata'!C511)","v":"0"}]
[null,509,{"$f":"'Praćenje rezultata'!C512&COUNTIF('Praćenje rezultata'!$C$4:C512,'Praćenje rezultata'!C512)","v":"0"}]
[null,510,{"$f":"'Praćenje rezultata'!C513&COUNTIF('Praćenje rezultata'!$C$4:C513,'Praćenje rezultata'!C513)","v":"0"}]
[null,511,{"$f":"'Praćenje rezultata'!C514&COUNTIF('Praćenje rezultata'!$C$4:C514,'Praćenje rezultata'!C514)","v":"0"}]
[null,512,{"$f":"'Praćenje rezultata'!C515&COUNTIF('Praćenje rezultata'!$C$4:C515,'Praćenje rezultata'!C515)","v":"0"}]
[null,513,{"$f":"'Praćenje rezultata'!C516&COUNTIF('Praćenje rezultata'!$C$4:C516,'Praćenje rezultata'!C516)","v":"0"}]
[null,514,{"$f":"'Praćenje rezultata'!C517&COUNTIF('Praćenje rezultata'!$C$4:C517,'Praćenje rezultata'!C517)","v":"0"}]
[null,515,{"$f":"'Praćenje rezultata'!C518&COUNTIF('Praćenje rezultata'!$C$4:C518,'Praćenje rezultata'!C518)","v":"0"}]
[null,516,{"$f":"'Praćenje rezultata'!C519&COUNTIF('Praćenje rezultata'!$C$4:C519,'Praćenje rezultata'!C519)","v":"0"}]
[null,517,{"$f":"'Praćenje rezultata'!C520&COUNTIF('Praćenje rezultata'!$C$4:C520,'Praćenje rezultata'!C520)","v":"0"}]
[null,518,{"$f":"'Praćenje rezultata'!C521&COUNTIF('Praćenje rezultata'!$C$4:C521,'Praćenje rezultata'!C521)","v":"0"}]
[null,519,{"$f":"'Praćenje rezultata'!C522&COUNTIF('Praćenje rezultata'!$C$4:C522,'Praćenje rezultata'!C522)","v":"0"}]
[null,520,{"$f":"'Praćenje rezultata'!C523&COUNTIF('Praćenje rezultata'!$C$4:C523,'Praćenje rezultata'!C523)","v":"0"}]
[null,521,{"$f":"'Praćenje rezultata'!C524&COUNTIF('Praćenje rezultata'!$C$4:C524,'Praćenje rezultata'!C524)","v":"0"}]
[null,522,{"$f":"'Praćenje rezultata'!C525&COUNTIF('Praćenje rezultata'!$C$4:C525,'Praćenje rezultata'!C525)","v":"0"}]
[null,523,{"$f":"'Praćenje rezultata'!C526&COUNTIF('Praćenje rezultata'!$C$4:C526,'Praćenje rezultata'!C526)","v":"0"}]
[null,524,{"$f":"'Praćenje rezultata'!C527&COUNTIF('Praćenje rezultata'!$C$4:C527,'Praćenje rezultata'!C527)","v":"0"}]
[null,525,{"$f":"'Praćenje rezultata'!C528&COUNTIF('Praćenje rezultata'!$C$4:C528,'Praćenje rezultata'!C528)","v":"0"}]
[null,526,{"$f":"'Praćenje rezultata'!C529&COUNTIF('Praćenje rezultata'!$C$4:C529,'Praćenje rezultata'!C529)","v":"0"}]
[null,527,{"$f":"'Praćenje rezultata'!C530&COUNTIF('Praćenje rezultata'!$C$4:C530,'Praćenje rezultata'!C530)","v":"0"}]
[null,528,{"$f":"'Praćenje rezultata'!C531&COUNTIF('Praćenje rezultata'!$C$4:C531,'Praćenje rezultata'!C531)","v":"0"}]
[null,529,{"$f":"'Praćenje rezultata'!C532&COUNTIF('Praćenje rezultata'!$C$4:C532,'Praćenje rezultata'!C532)","v":"0"}]
[null,530,{"$f":"'Praćenje rezultata'!C533&COUNTIF('Praćenje rezultata'!$C$4:C533,'Praćenje rezultata'!C533)","v":"0"}]
[null,531,{"$f":"'Praćenje rezultata'!C534&COUNTIF('Praćenje rezultata'!$C$4:C534,'Praćenje rezultata'!C534)","v":"0"}]
[null,532,{"$f":"'Praćenje rezultata'!C535&COUNTIF('Praćenje rezultata'!$C$4:C535,'Praćenje rezultata'!C535)","v":"0"}]
[null,533,{"$f":"'Praćenje rezultata'!C536&COUNTIF('Praćenje rezultata'!$C$4:C536,'Praćenje rezultata'!C536)","v":"0"}]
[null,534,{"$f":"'Praćenje rezultata'!C537&COUNTIF('Praćenje rezultata'!$C$4:C537,'Praćenje rezultata'!C537)","v":"0"}]
[null,535,{"$f":"'Praćenje rezultata'!C538&COUNTIF('Praćenje rezultata'!$C$4:C538,'Praćenje rezultata'!C538)","v":"0"}]
[null,536,{"$f":"'Praćenje rezultata'!C539&COUNTIF('Praćenje rezultata'!$C$4:C539,'Praćenje rezultata'!C539)","v":"0"}]
[null,537,{"$f":"'Praćenje rezultata'!C540&COUNTIF('Praćenje rezultata'!$C$4:C540,'Praćenje rezultata'!C540)","v":"0"}]
[null,538,{"$f":"'Praćenje rezultata'!C541&COUNTIF('Praćenje rezultata'!$C$4:C541,'Praćenje rezultata'!C541)","v":"0"}]
[null,539,{"$f":"'Praćenje rezultata'!C542&COUNTIF('Praćenje rezultata'!$C$4:C542,'Praćenje rezultata'!C542)","v":"0"}]
[null,540,{"$f":"'Praćenje rezultata'!C543&COUNTIF('Praćenje rezultata'!$C$4:C543,'Praćenje rezultata'!C543)","v":"0"}]
[null,541,{"$f":"'Praćenje rezultata'!C544&COUNTIF('Praćenje rezultata'!$C$4:C544,'Praćenje rezultata'!C544)","v":"0"}]
[null,542,{"$f":"'Praćenje rezultata'!C545&COUNTIF('Praćenje rezultata'!$C$4:C545,'Praćenje rezultata'!C545)","v":"0"}]
[null,543,{"$f":"'Praćenje rezultata'!C546&COUNTIF('Praćenje rezultata'!$C$4:C546,'Praćenje rezultata'!C546)","v":"0"}]
[null,544,{"$f":"'Praćenje rezultata'!C547&COUNTIF('Praćenje rezultata'!$C$4:C547,'Praćenje rezultata'!C547)","v":"0"}]
[null,545,{"$f":"'Praćenje rezultata'!C548&COUNTIF('Praćenje rezultata'!$C$4:C548,'Praćenje rezultata'!C548)","v":"0"}]
[null,546,{"$f":"'Praćenje rezultata'!C549&COUNTIF('Praćenje rezultata'!$C$4:C549,'Praćenje rezultata'!C549)","v":"0"}]
[null,547,{"$f":"'Praćenje rezultata'!C550&COUNTIF('Praćenje rezultata'!$C$4:C550,'Praćenje rezultata'!C550)","v":"0"}]
[null,548,{"$f":"'Praćenje rezultata'!C551&COUNTIF('Praćenje rezultata'!$C$4:C551,'Praćenje rezultata'!C551)","v":"0"}]
[null,549,{"$f":"'Praćenje rezultata'!C552&COUNTIF('Praćenje rezultata'!$C$4:C552,'Praćenje rezultata'!C552)","v":"0"}]
[null,550,{"$f":"'Praćenje rezultata'!C553&COUNTIF('Praćenje rezultata'!$C$4:C553,'Praćenje rezultata'!C553)","v":"0"}]
[null,551,{"$f":"'Praćenje rezultata'!C554&COUNTIF('Praćenje rezultata'!$C$4:C554,'Praćenje rezultata'!C554)","v":"0"}]
[null,552,{"$f":"'Praćenje rezultata'!C555&COUNTIF('Praćenje rezultata'!$C$4:C555,'Praćenje rezultata'!C555)","v":"0"}]
[null,553,{"$f":"'Praćenje rezultata'!C556&COUNTIF('Praćenje rezultata'!$C$4:C556,'Praćenje rezultata'!C556)","v":"0"}]
[null,554,{"$f":"'Praćenje rezultata'!C557&COUNTIF('Praćenje rezultata'!$C$4:C557,'Praćenje rezultata'!C557)","v":"0"}]
[null,555,{"$f":"'Praćenje rezultata'!C558&COUNTIF('Praćenje rezultata'!$C$4:C558,'Praćenje rezultata'!C558)","v":"0"}]
[null,556,{"$f":"'Praćenje rezultata'!C559&COUNTIF('Praćenje rezultata'!$C$4:C559,'Praćenje rezultata'!C559)","v":"0"}]
[null,557,{"$f":"'Praćenje rezultata'!C560&COUNTIF('Praćenje rezultata'!$C$4:C560,'Praćenje rezultata'!C560)","v":"0"}]
[null,558,{"$f":"'Praćenje rezultata'!C561&COUNTIF('Praćenje rezultata'!$C$4:C561,'Praćenje rezultata'!C561)","v":"0"}]
[null,559,{"$f":"'Praćenje rezultata'!C562&COUNTIF('Praćenje rezultata'!$C$4:C562,'Praćenje rezultata'!C562)","v":"0"}]
[null,560,{"$f":"'Praćenje rezultata'!C563&COUNTIF('Praćenje rezultata'!$C$4:C563,'Praćenje rezultata'!C563)","v":"0"}]
[null,561,{"$f":"'Praćenje rezultata'!C564&COUNTIF('Praćenje rezultata'!$C$4:C564,'Praćenje rezultata'!C564)","v":"0"}]
[null,562,{"$f":"'Praćenje rezultata'!C565&COUNTIF('Praćenje rezultata'!$C$4:C565,'Praćenje rezultata'!C565)","v":"0"}]
[null,563,{"$f":"'Praćenje rezultata'!C566&COUNTIF('Praćenje rezultata'!$C$4:C566,'Praćenje rezultata'!C566)","v":"0"}]
[null,564,{"$f":"'Praćenje rezultata'!C567&COUNTIF('Praćenje rezultata'!$C$4:C567,'Praćenje rezultata'!C567)","v":"0"}]
[null,565,{"$f":"'Praćenje rezultata'!C568&COUNTIF('Praćenje rezultata'!$C$4:C568,'Praćenje rezultata'!C568)","v":"0"}]
[null,566,{"$f":"'Praćenje rezultata'!C569&COUNTIF('Praćenje rezultata'!$C$4:C569,'Praćenje rezultata'!C569)","v":"0"}]
[null,567,{"$f":"'Praćenje rezultata'!C570&COUNTIF('Praćenje rezultata'!$C$4:C570,'Praćenje rezultata'!C570)","v":"0"}]
[null,568,{"$f":"'Praćenje rezultata'!C571&COUNTIF('Praćenje rezultata'!$C$4:C571,'Praćenje rezultata'!C571)","v":"0"}]
[null,569,{"$f":"'Praćenje rezultata'!C572&COUNTIF('Praćenje rezultata'!$C$4:C572,'Praćenje rezultata'!C572)","v":"0"}]
[null,570,{"$f":"'Praćenje rezultata'!C573&COUNTIF('Praćenje rezultata'!$C$4:C573,'Praćenje rezultata'!C573)","v":"0"}]
[null,571,{"$f":"'Praćenje rezultata'!C574&COUNTIF('Praćenje rezultata'!$C$4:C574,'Praćenje rezultata'!C574)","v":"0"}]
[null,572,{"$f":"'Praćenje rezultata'!C575&COUNTIF('Praćenje rezultata'!$C$4:C575,'Praćenje rezultata'!C575)","v":"0"}]
[null,573,{"$f":"'Praćenje rezultata'!C576&COUNTIF('Praćenje rezultata'!$C$4:C576,'Praćenje rezultata'!C576)","v":"0"}]
[null,574,{"$f":"'Praćenje rezultata'!C577&COUNTIF('Praćenje rezultata'!$C$4:C577,'Praćenje rezultata'!C577)","v":"0"}]
[null,575,{"$f":"'Praćenje rezultata'!C578&COUNTIF('Praćenje rezultata'!$C$4:C578,'Praćenje rezultata'!C578)","v":"0"}]
[null,576,{"$f":"'Praćenje rezultata'!C579&COUNTIF('Praćenje rezultata'!$C$4:C579,'Praćenje rezultata'!C579)","v":"0"}]
[null,577,{"$f":"'Praćenje rezultata'!C580&COUNTIF('Praćenje rezultata'!$C$4:C580,'Praćenje rezultata'!C580)","v":"0"}]
[null,578,{"$f":"'Praćenje rezultata'!C581&COUNTIF('Praćenje rezultata'!$C$4:C581,'Praćenje rezultata'!C581)","v":"0"}]
[null,579,{"$f":"'Praćenje rezultata'!C582&COUNTIF('Praćenje rezultata'!$C$4:C582,'Praćenje rezultata'!C582)","v":"0"}]
[null,580,{"$f":"'Praćenje rezultata'!C583&COUNTIF('Praćenje rezultata'!$C$4:C583,'Praćenje rezultata'!C583)","v":"0"}]
[null,581,{"$f":"'Praćenje rezultata'!C584&COUNTIF('Praćenje rezultata'!$C$4:C584,'Praćenje rezultata'!C584)","v":"0"}]
[null,582,{"$f":"'Praćenje rezultata'!C585&COUNTIF('Praćenje rezultata'!$C$4:C585,'Praćenje rezultata'!C585)","v":"0"}]
[null,583,{"$f":"'Praćenje rezultata'!C586&COUNTIF('Praćenje rezultata'!$C$4:C586,'Praćenje rezultata'!C586)","v":"0"}]
[null,584,{"$f":"'Praćenje rezultata'!C587&COUNTIF('Praćenje rezultata'!$C$4:C587,'Praćenje rezultata'!C587)","v":"0"}]
[null,585,{"$f":"'Praćenje rezultata'!C588&COUNTIF('Praćenje rezultata'!$C$4:C588,'Praćenje rezultata'!C588)","v":"0"}]
[null,586,{"$f":"'Praćenje rezultata'!C589&COUNTIF('Praćenje rezultata'!$C$4:C589,'Praćenje rezultata'!C589)","v":"0"}]
[null,587,{"$f":"'Praćenje rezultata'!C590&COUNTIF('Praćenje rezultata'!$C$4:C590,'Praćenje rezultata'!C590)","v":"0"}]
[null,588,{"$f":"'Praćenje rezultata'!C591&COUNTIF('Praćenje rezultata'!$C$4:C591,'Praćenje rezultata'!C591)","v":"0"}]
[null,589,{"$f":"'Praćenje rezultata'!C592&COUNTIF('Praćenje rezultata'!$C$4:C592,'Praćenje rezultata'!C592)","v":"0"}]
[null,590,{"$f":"'Praćenje rezultata'!C593&COUNTIF('Praćenje rezultata'!$C$4:C593,'Praćenje rezultata'!C593)","v":"0"}]
[null,591,{"$f":"'Praćenje rezultata'!C594&COUNTIF('Praćenje rezultata'!$C$4:C594,'Praćenje rezultata'!C594)","v":"0"}]
[null,592,{"$f":"'Praćenje rezultata'!C595&COUNTIF('Praćenje rezultata'!$C$4:C595,'Praćenje rezultata'!C595)","v":"0"}]
[null,593,{"$f":"'Praćenje rezultata'!C596&COUNTIF('Praćenje rezultata'!$C$4:C596,'Praćenje rezultata'!C596)","v":"0"}]
[null,594,{"$f":"'Praćenje rezultata'!C597&COUNTIF('Praćenje rezultata'!$C$4:C597,'Praćenje rezultata'!C597)","v":"0"}]
[null,595,{"$f":"'Praćenje rezultata'!C598&COUNTIF('Praćenje rezultata'!$C$4:C598,'Praćenje rezultata'!C598)","v":"0"}]
[null,596,{"$f":"'Praćenje rezultata'!C599&COUNTIF('Praćenje rezultata'!$C$4:C599,'Praćenje rezultata'!C599)","v":"0"}]
[null,597,{"$f":"'Praćenje rezultata'!C600&COUNTIF('Praćenje rezultata'!$C$4:C600,'Praćenje rezultata'!C600)","v":"0"}]
[null,598,{"$f":"'Praćenje rezultata'!C601&COUNTIF('Praćenje rezultata'!$C$4:C601,'Praćenje rezultata'!C601)","v":"0"}]
[null,599,{"$f":"'Praćenje rezultata'!C602&COUNTIF('Praćenje rezultata'!$C$4:C602,'Praćenje rezultata'!C602)","v":"0"}]
[null,600,{"$f":"'Praćenje rezultata'!C603&COUNTIF('Praćenje rezultata'!$C$4:C603,'Praćenje rezultata'!C603)","v":"0"}]
[null,601,{"$f":"'Praćenje rezultata'!C604&COUNTIF('Praćenje rezultata'!$C$4:C604,'Praćenje rezultata'!C604)","v":"0"}]
[null,602,{"$f":"'Praćenje rezultata'!C605&COUNTIF('Praćenje rezultata'!$C$4:C605,'Praćenje rezultata'!C605)","v":"0"}]
[null,603,{"$f":"'Praćenje rezultata'!C606&COUNTIF('Praćenje rezultata'!$C$4:C606,'Praćenje rezultata'!C606)","v":"0"}]
[null,604,{"$f":"'Praćenje rezultata'!C607&COUNTIF('Praćenje rezultata'!$C$4:C607,'Praćenje rezultata'!C607)","v":"0"}]
[null,605,{"$f":"'Praćenje rezultata'!C608&COUNTIF('Praćenje rezultata'!$C$4:C608,'Praćenje rezultata'!C608)","v":"0"}]
[null,606,{"$f":"'Praćenje rezultata'!C609&COUNTIF('Praćenje rezultata'!$C$4:C609,'Praćenje rezultata'!C609)","v":"0"}]
[null,607,{"$f":"'Praćenje rezultata'!C610&COUNTIF('Praćenje rezultata'!$C$4:C610,'Praćenje rezultata'!C610)","v":"0"}]
[null,608,{"$f":"'Praćenje rezultata'!C611&COUNTIF('Praćenje rezultata'!$C$4:C611,'Praćenje rezultata'!C611)","v":"0"}]
[null,609,{"$f":"'Praćenje rezultata'!C612&COUNTIF('Praćenje rezultata'!$C$4:C612,'Praćenje rezultata'!C612)","v":"0"}]
[null,610,{"$f":"'Praćenje rezultata'!C613&COUNTIF('Praćenje rezultata'!$C$4:C613,'Praćenje rezultata'!C613)","v":"0"}]
[null,611,{"$f":"'Praćenje rezultata'!C614&COUNTIF('Praćenje rezultata'!$C$4:C614,'Praćenje rezultata'!C614)","v":"0"}]
[null,612,{"$f":"'Praćenje rezultata'!C615&COUNTIF('Praćenje rezultata'!$C$4:C615,'Praćenje rezultata'!C615)","v":"0"}]
[null,613,{"$f":"'Praćenje rezultata'!C616&COUNTIF('Praćenje rezultata'!$C$4:C616,'Praćenje rezultata'!C616)","v":"0"}]
[null,614,{"$f":"'Praćenje rezultata'!C617&COUNTIF('Praćenje rezultata'!$C$4:C617,'Praćenje rezultata'!C617)","v":"0"}]
[null,615,{"$f":"'Praćenje rezultata'!C618&COUNTIF('Praćenje rezultata'!$C$4:C618,'Praćenje rezultata'!C618)","v":"0"}]
[null,616,{"$f":"'Praćenje rezultata'!C619&COUNTIF('Praćenje rezultata'!$C$4:C619,'Praćenje rezultata'!C619)","v":"0"}]
[null,617,{"$f":"'Praćenje rezultata'!C620&COUNTIF('Praćenje rezultata'!$C$4:C620,'Praćenje rezultata'!C620)","v":"0"}]
[null,618,{"$f":"'Praćenje rezultata'!C621&COUNTIF('Praćenje rezultata'!$C$4:C621,'Praćenje rezultata'!C621)","v":"0"}]
[null,619,{"$f":"'Praćenje rezultata'!C622&COUNTIF('Praćenje rezultata'!$C$4:C622,'Praćenje rezultata'!C622)","v":"0"}]
[null,620,{"$f":"'Praćenje rezultata'!C623&COUNTIF('Praćenje rezultata'!$C$4:C623,'Praćenje rezultata'!C623)","v":"0"}]
[null,621,{"$f":"'Praćenje rezultata'!C624&COUNTIF('Praćenje rezultata'!$C$4:C624,'Praćenje rezultata'!C624)","v":"0"}]
[null,622,{"$f":"'Praćenje rezultata'!C625&COUNTIF('Praćenje rezultata'!$C$4:C625,'Praćenje rezultata'!C625)","v":"0"}]
[null,623,{"$f":"'Praćenje rezultata'!C626&COUNTIF('Praćenje rezultata'!$C$4:C626,'Praćenje rezultata'!C626)","v":"0"}]
[null,624,{"$f":"'Praćenje rezultata'!C627&COUNTIF('Praćenje rezultata'!$C$4:C627,'Praćenje rezultata'!C627)","v":"0"}]
[null,625,{"$f":"'Praćenje rezultata'!C628&COUNTIF('Praćenje rezultata'!$C$4:C628,'Praćenje rezultata'!C628)","v":"0"}]